{"text_format":"1","workbook":"xlsx","n_sheets":32,"sheets":["Préparation","Entretiens réalisés","Eleve1","Eleve2","Eleve3","Eleve4","Eleve5","Eleve6","Eleve7","Eleve8","Eleve9","Eleve10","Eleve11","Eleve12","Eleve13","Eleve14","Eleve15","Eleve16","Eleve17","Eleve18","Eleve19","Eleve20","Eleve21","Eleve22","Eleve23","Eleve24","Eleve25","Eleve26","Eleve27","Eleve28","Eleve29","Eleve30"],"not_rendered":{"charts":0,"images":0,"macros":1,"external_links":0,"defined_names":31,"comments":0,"pivot_tables":0},"unopened":[],"bounds":{"document_bytes":16777216,"sheet_cells":100000,"rows_first":2000,"rows_last":500,"rows_between":2000,"halvings":0,"cell_chars":16384,"cell_head_chars":4096},"cells_cut":0,"cells_raw":0,"read":"whole","date_system":"1900"}

{"sheet":"Préparation","index":0,"n_rows":37,"n_cols":9,"rows_kept":37,"cut":false,"hidden":false,"merged":[[0,0,0,11],[7,6,7,10],[8,6,8,10]]}
["Page 1 : préparation des onglets"]
["Ce document a pour objectif de permettre de suivre l'évolution de chaque élève.",null,null,null,null,null,"Chaque compétence peut-être évaluée jusqu'à 5 fois ce qui semble être raisonnable étant donné que"]
[null,null,null,null,null,null,"l'on s'appuie sur sa marge de progression jusqu'à la complète acquisition (ou pas)."]
["Nom des enseignants de la formation :",null,null,"AMMOUIAL","Prof2","Prof3","Prof4","Prof5","Prof6"]
[]
["Liste des prénoms des élèves de la classe :",null,null,null,null,null,"Au début du cycle :"]
[null,null,null,"Exemples :"]
[null,"Eleve1",null,"Eleve1",null,null,"1°) : Entrer les noms des enseignants dans les cellules D4, E4, F4,G4,H4 et I4."]
[null,"Eleve2",null,"Eleve2",null,null,"Il y a 6 cellules en cas de changements d'enseignants durant le cycle (1 an ; 2 ans ; 3 ans)"]
[null,"Eleve3",null,"Eleve3",null,null,"Ne pas supprimer/échanger un nom d'enseignant, juste l'ajouter dans les emplacments libres."]
[null,"Eleve4",null,"Eleve4"]
[null,"Eleve5",null,"Eleve5",null,null,"2°) : Copier/coller la liste des élèves dans les cellules B8 à B38 dans la limite de 30 élèves."]
[null,"Eleve6",null,"Eleve6"]
[null,"Eleve7",null,"Eleve7",null,null,"3°) : Executez la macro nommée RenommerOngletsJA."]
[null,"Eleve8",null,"Eleve8"]
[null,"Eleve9",null,"Eleve9",null,null,"4°) : Si un nouvel élève est affecté : Ajouter son prénom en fin de liste dans la limite de 30 élèves."]
[null,"Eleve10",null,"Eleve10",null,null,"et relancer le point 3."]
[null,"Eleve11",null,"Eleve11"]
[null,"Eleve12",null,"Eleve12",null,null,"5°) Si un élève sort des effectifs, le laisser ! Cela fera toujours un suivi et cela ne prend pas de place !"]
[null,"Eleve13",null,"Eleve13",null,"Dans les onglets suivants :"]
[null,"Eleve14",null,"Eleve14",null,"1°)","Saisir :"]
[null,"Eleve15",null,"Eleve15",null,null,1,"Novice : Saisir 1 dans la cellule \"Niveau\""]
[null,"Eleve16",null,"Eleve16",null,null,2,"Débrouillé : Saisir 2 dans la cellule \"Niveau\""]
[null,"Eleve17",null,"Eleve17",null,null,3,"Averti : Saisir 3 dans la cellule \"Niveau\""]
[null,"Eleve18",null,"Eleve18",null,null,4,"Expert : Saisir 4 dans la cellule \"Niveau\""]
[null,"Eleve19",null,"Eleve19"]
[null,"Eleve20",null,"Eleve20",null,"2°)","La date s'incrémente seule lors de la saisie du chiffre du niveau."]
[null,"Eleve21",null,"Eleve21"]
[null,"Eleve22",null,"Eleve22",null,"3°)","Sélectionner le nom de l'enseignant qui a évalué la compétence."]
[null,"Eleve23",null,"Eleve23"]
[null,"Eleve24",null,"Eleve24",null,"4°)","Puis noter le type d'activité (PFMP ; Brassens Shop ; Darty...)"]
[null,"Eleve25",null,"Eleve25"]
[null,"Eleve26",null,"Eleve26",null,"5°)","Noter le niveau de difficulté de l'activité."]
[null,"Eleve27",null,"Eleve27"]
[null,"Eleve28",null,"Eleve28"]
[null,"Eleve29",null,"Eleve29"]
[null,"Eleve30",null,"Eleve30"]

{"sheet":"Entretiens réalisés","index":1,"n_rows":20,"n_cols":33,"rows_kept":20,"cut":false,"hidden":false,"merged":[[1,0,4,0],[1,1,1,2],[3,1,3,2],[4,1,4,2],[7,1,7,2],[17,1,17,2],[18,1,18,2],[20,1,20,2],[7,0,11,0],[14,0,18,0],[8,1,8,2],[11,1,11,2],[9,1,9,2],[10,1,10,2],[14,1,14,2],[15,1,15,2],[16,1,16,2]]}
["Plutôt que de mettre une croix, privilégier N, D, A, E.",null,null,{"$f":"Préparation!B8","v":"Eleve1"},{"$f":"Préparation!B9","v":"Eleve2"},{"$f":"Préparation!B10","v":"Eleve3"},{"$f":"Préparation!$B11","v":"Eleve4"},{"$f":"Préparation!$B12","v":"Eleve5"},{"$f":"Préparation!$B13","v":"Eleve6"},{"$f":"Préparation!$B14","v":"Eleve7"},{"$f":"Préparation!$B15","v":"Eleve8"},{"$f":"Préparation!$B16","v":"Eleve9"},{"$f":"Préparation!$B17","v":"Eleve10"},{"$f":"Préparation!$B18","v":"Eleve11"},{"$f":"Préparation!$B19","v":"Eleve12"},{"$f":"Préparation!$B20","v":"Eleve13"},{"$f":"Préparation!$B21","v":"Eleve14"},{"$f":"Préparation!$B22","v":"Eleve15"},{"$f":"Préparation!$B23","v":"Eleve16"},{"$f":"Préparation!$B24","v":"Eleve17"},{"$f":"Préparation!$B25","v":"Eleve18"},{"$f":"Préparation!$B26","v":"Eleve19"},{"$f":"Préparation!$B27","v":"Eleve20"},{"$f":"Préparation!$B28","v":"Eleve21"},{"$f":"Préparation!$B29","v":"Eleve22"},{"$f":"Préparation!$B30","v":"Eleve23"},{"$f":"Préparation!$B31","v":"Eleve24"},{"$f":"Préparation!$B32","v":"Eleve25"},{"$f":"Préparation!$B33","v":"Eleve26"},{"$f":"Préparation!$B34","v":"Eleve27"},{"$f":"Préparation!$B35","v":"Eleve28"},{"$f":"Préparation!$B36","v":"Eleve29"},{"$f":"Préparation!$B37","v":"Eleve30"}]
["BLOC 1","Participer à la passation des commandes fournisseurs"]
[null,"Réceptionner"]
[null,"Stocker"]
[null,"Préparer les commandes destinées aux clients"]
[]
[]
["BLOC 2","Approvisionner, mettre en rayon et ranger selon la nature des produits"]
[null,"Mettre en valeur les produits et l’espace commercial"]
[null,"Participer aux opérations de conditionnement des produits"]
[null,"Installer et mettre à jour la signalétique"]
[null,"Lutter contre la démarque et participer aux opérations d’inventaire"]
[]
[]
["BLOC 3","Préparer son environnement de travail"]
[null,"Prendre contact avec le client"]
[null,"Accompagner le parcours client dans un contexte omnicanal"]
[null,"Finaliser la prise en charge du client"]
[null,"Recevoir les réclamations courantes"]
["Chaque N, D, A, pourra être modifiée par une évaluation supérieure en cas de progression au fil de l'eau."]

{"sheet":"Eleve1","index":2,"n_rows":27,"n_cols":32,"rows_kept":27,"cut":false,"hidden":false,"merged":[[1,0,1,27],[3,0,6,0],[3,1,3,2],[5,1,5,2],[6,1,6,2],[10,1,10,2],[11,1,11,2],[12,1,12,2],[13,1,13,2],[16,0,20,0],[16,1,16,2],[17,1,17,2],[18,1,18,2],[19,1,19,2],[20,1,20,2],[9,0,13,0],[9,1,9,2]]}
[]
["Grille de suivi individuelle de formation"]
[null,null,null,"Niveau de l'élève","Prof","Date","Activité","Niveau de difficulté",null,"Niveau de l'élève","Prof","Date","Activité","Niveau de difficulté",null,"Niveau de l'élève","Prof","Date","Activité","Niveau de difficulté",null,"Niveau de l'élève","Prof","Date","Activité","Niveau de difficulté",null,"Niveau de l'élève","Prof","Date","Activité","Niveau de difficulté"]
["BLOC 1","Participer à la passation des commandes fournisseurs",null,null,null,{"$f":"IF(D4<>\"\",TODAY(),\"\")","v":""},null,null,null,null,null,null,null,null,null,null,null,{"$f":"IF(P4<>\"\",TODAY(),\"\")","v":""},null,null,null,null,null,{"$f":"IF(V4<>\"\",TODAY(),\"\")","v":""},null,null,null,null,null,{"$f":"IF(AB4<>\"\",TODAY(),\"\")","v":""}]
[null,"Réceptionner",null,null,null,"",null,null,null,null,null,{"$f":"IF(J5<>\"\",TODAY(),\"\")","v":""},null,null,null,null,null,"",null,null,null,null,null,"",null,null,null,null,null,""]
[null,"Stocker",null,null,null,"",null,null,null,null,null,"",null,null,null,null,null,"",null,null,null,null,null,"",null,null,null,null,null,""]
[null,"Préparer les commandes destinées aux clients",null,null,null,"",null,null,null,null,null,"",null,null,null,null,null,"",null,null,null,null,null,"",null,null,null,null,null,""]
[null,null,null,null,null,null,null,null,null,null,null,"",null,null,null,null,null,"",null,null,null,null,null,"",null,null,null,null,null,""]
[null,null,null,null,null,"",null,null,null,null,null,"",null,null,null,null,null,"",null,null,null,null,null,"",null,null,null,null,null,""]
["BLOC 2","Approvisionner, mettre en rayon et ranger selon la nature des produits",null,null,null,"",null,null,null,null,null,"",null,null,null,null,null,"",null,null,null,null,null,"",null,null,null,null,null,""]
[null,"Mettre en valeur les produits et l’espace commercial",null,null,null,"",null,null,null,null,null,"",null,null,null,null,null,"",null,null,null,null,null,"",null,null,null,null,null,""]
[null,"Participer aux opérations de conditionnement des produits",null,null,null,"",null,null,null,null,null,"",null,null,null,null,null,"",null,null,null,null,null,"",null,null,null,null,null,""]
[null,"Installer et mettre à jour la signalétique",null,null,null,"",null,null,null,null,null,"",null,null,null,null,null,"",null,null,null,null,null,"",null,null,null,null,null,""]
[null,"Lutter contre la démarque et participer aux opérations d’inventaire",null,null,null,"",null,null,null,null,null,"",null,null,null,null,null,"",null,null,null,null,null,"",null,null,null,null,null,""]
[null,null,null,null,null,"",null,null,null,null,null,"",null,null,null,null,null,"",null,null,null,null,null,"",null,null,null,null,null,""]
[null,null,null,null,null,"",null,null,null,null,null,"",null,null,null,null,null,"",null,null,null,null,null,"",null,null,null,null,null,""]
["BLOC 3","Préparer son environnement de travail",null,null,null,"",null,null,null,null,null,"",null,null,null,null,null,"",null,null,null,null,null,"",null,null,null,null,null,""]
[null,"Prendre contact avec le client",null,null,null,"",null,null,null,null,null,"",null,null,null,null,null,"",null,null,null,null,null,"",null,null,null,null,null,""]
[null,"Accompagner le parcours client dans un contexte omnicanal",null,null,null,"",null,null,null,null,null,"",null,null,null,null,null,"",null,null,null,null,null,"",null,null,null,null,null,""]
[null,"Finaliser la prise en charge du client",null,null,null,"",null,null,null,null,null,"",null,null,null,null,null,"",null,null,null,null,null,"",null,null,null,null,null,""]
[null,"Recevoir les réclamations courantes",null,null,null,"",null,null,null,null,null,"",null,null,null,null,null,"",null,null,null,null,null,"",null,null,null,null,null,""]
[]
["1°)",1,"Novice : Saisir 1 dans la cellule \"Niveau\"","2°)","La date s'incrémente seule lors de la saisie du chiffre du niveau.",null,null,null,null,"5°)","Noter le niveau de difficulté de l'activité."]
[null,2,"Débrouillé : Saisir 2 dans la cellule \"Niveau\""]
[null,3,"Averti : Saisir 3 dans la cellule \"Niveau\"","3°)","Sélectionner les initiales de l'enseignant."]
[null,4,"Expert : Saisir 4 dans la cellule \"Niveau\""]
[null,null,null,"4°)","Puis noter l'activité (PFMP ; Brassens Shop ; Darty...)"]

{"sheet":"Eleve2","index":3,"n_rows":27,"n_cols":32,"rows_kept":27,"cut":false,"hidden":false,"merged":[[1,0,1,27],[3,0,6,0],[3,1,3,2],[5,1,5,2],[6,1,6,2],[10,1,10,2],[11,1,11,2],[12,1,12,2],[13,1,13,2],[16,0,20,0],[16,1,16,2],[17,1,17,2],[18,1,18,2],[19,1,19,2],[20,1,20,2],[9,0,13,0],[9,1,9,2]]}
[]
["Grille de suivi individuelle de formation"]
[null,null,null,"Niveau de l'élève","Prof","Date","Activité","Niveau de difficulté",null,"Niveau de l'élève","Prof","Date","Activité","Niveau de difficulté",null,"Niveau de l'élève","Prof","Date","Activité","Niveau de difficulté",null,"Niveau de l'élève","Prof","Date","Activité","Niveau de difficulté",null,"Niveau de l'élève","Prof","Date","Activité","Niveau de difficulté"]
["BLOC 1","Participer à la passation des commandes fournisseurs",null,null,null,{"$f":"IF(D4<>\"\",TODAY(),\"\")","v":""},null,null,null,null,null,{"$f":"IF(J4<>\"\",TODAY(),\"\")","v":""},null,null,null,null,null,{"$f":"IF(P4<>\"\",TODAY(),\"\")","v":""},null,null,null,null,null,{"$f":"IF(V4<>\"\",TODAY(),\"\")","v":""},null,null,null,null,null,{"$f":"IF(AB4<>\"\",TODAY(),\"\")","v":""}]
[null,"Réceptionner",null,null,null,"",null,null,null,null,null,"",null,null,null,null,null,"",null,null,null,null,null,"",null,null,null,null,null,""]
[null,"Stocker",null,null,null,"",null,null,null,null,null,"",null,null,null,null,null,"",null,null,null,null,null,"",null,null,null,null,null,""]
[null,"Préparer les commandes destinées aux clients",null,null,null,"",null,null,null,null,null,"",null,null,null,null,null,"",null,null,null,null,null,"",null,null,null,null,null,""]
[null,null,null,null,null,"",null,null,null,null,null,"",null,null,null,null,null,"",null,null,null,null,null,"",null,null,null,null,null,""]
[null,null,null,null,null,"",null,null,null,null,null,"",null,null,null,null,null,"",null,null,null,null,null,"",null,null,null,null,null,""]
["BLOC 2","Approvisionner, mettre en rayon et ranger selon la nature des produits",null,null,null,"",null,null,null,null,null,"",null,null,null,null,null,"",null,null,null,null,null,"",null,null,null,null,null,""]
[null,"Mettre en valeur les produits et l’espace commercial",null,null,null,"",null,null,null,null,null,"",null,null,null,null,null,"",null,null,null,null,null,"",null,null,null,null,null,""]
[null,"Participer aux opérations de conditionnement des produits",null,null,null,"",null,null,null,null,null,"",null,null,null,null,null,"",null,null,null,null,null,"",null,null,null,null,null,""]
[null,"Installer et mettre à jour la signalétique",null,null,null,"",null,null,null,null,null,"",null,null,null,null,null,"",null,null,null,null,null,"",null,null,null,null,null,""]
[null,"Lutter contre la démarque et participer aux opérations d’inventaire",null,null,null,"",null,null,null,null,null,"",null,null,null,null,null,"",null,null,null,null,null,"",null,null,null,null,null,""]
[null,null,null,null,null,"",null,null,null,null,null,"",null,null,null,null,null,"",null,null,null,null,null,"",null,null,null,null,null,""]
[null,null,null,null,null,"",null,null,null,null,null,"",null,null,null,null,null,"",null,null,null,null,null,"",null,null,null,null,null,""]
["BLOC 3","Préparer son environnement de travail",null,null,null,"",null,null,null,null,null,"",null,null,null,null,null,"",null,null,null,null,null,"",null,null,null,null,null,""]
[null,"Prendre contact avec le client",null,null,null,"",null,null,null,null,null,"",null,null,null,null,null,"",null,null,null,null,null,"",null,null,null,null,null,""]
[null,"Accompagner le parcours client dans un contexte omnicanal",null,null,null,"",null,null,null,null,null,"",null,null,null,null,null,"",null,null,null,null,null,"",null,null,null,null,null,""]
[null,"Finaliser la prise en charge du client",null,null,null,"",null,null,null,null,null,"",null,null,null,null,null,"",null,null,null,null,null,"",null,null,null,null,null,""]
[null,"Recevoir les réclamations courantes",null,null,null,"",null,null,null,null,null,"",null,null,null,null,null,"",null,null,null,null,null,"",null,null,null,null,null,""]
[]
["1°)",1,"Novice : Saisir 1 dans la cellule \"Niveau\"","2°)","La date s'incrémente seule lors de la saisie du chiffre du niveau.",null,null,null,null,"5°)","Noter le niveau de difficulté de l'activité."]
[null,2,"Débrouillé : Saisir 2 dans la cellule \"Niveau\""]
[null,3,"Averti : Saisir 3 dans la cellule \"Niveau\"","3°)","Sélectionner les initiales de l'enseignant."]
[null,4,"Expert : Saisir 4 dans la cellule \"Niveau\""]
[null,null,null,"4°)","Puis noter l'activité (PFMP ; Brassens Shop ; Darty...)"]

{"sheet":"Eleve3","index":4,"n_rows":27,"n_cols":32,"rows_kept":27,"cut":false,"hidden":false,"merged":[[1,0,1,27],[3,0,6,0],[3,1,3,2],[5,1,5,2],[6,1,6,2],[10,1,10,2],[11,1,11,2],[12,1,12,2],[13,1,13,2],[16,0,20,0],[16,1,16,2],[17,1,17,2],[18,1,18,2],[19,1,19,2],[20,1,20,2],[9,0,13,0],[9,1,9,2]]}
[]
["Grille de suivi individuelle de formation"]
[null,null,null,"Niveau de l'élève","Prof","Date","Activité","Niveau de difficulté",null,"Niveau de l'élève","Prof","Date","Activité","Niveau de difficulté",null,"Niveau de l'élève","Prof","Date","Activité","Niveau de difficulté",null,"Niveau de l'élève","Prof","Date","Activité","Niveau de difficulté",null,"Niveau de l'élève","Prof","Date","Activité","Niveau de difficulté"]
["BLOC 1","Participer à la passation des commandes fournisseurs",null,null,null,null,null,null,null,null,null,null,null,null,null,null,null,{"$f":"IF(P4<>\"\",TODAY(),\"\")","v":""},null,null,null,null,null,{"$f":"IF(V4<>\"\",TODAY(),\"\")","v":""},null,null,null,null,null,{"$f":"IF(AB4<>\"\",TODAY(),\"\")","v":""}]
[null,"Réceptionner",null,null,null,{"$f":"IF(D5<>\"\",TODAY(),\"\")","v":""},null,null,null,null,null,{"$f":"IF(J5<>\"\",TODAY(),\"\")","v":""},null,null,null,null,null,"",null,null,null,null,null,"",null,null,null,null,null,""]
[null,"Stocker",null,null,null,"",null,null,null,null,null,"",null,null,null,null,null,"",null,null,null,null,null,"",null,null,null,null,null,""]
[null,"Préparer les commandes destinées aux clients",null,null,null,"",null,null,null,null,null,"",null,null,null,null,null,"",null,null,null,null,null,"",null,null,null,null,null,""]
[null,null,null,null,null,"",null,null,null,null,null,"",null,null,null,null,null,"",null,null,null,null,null,"",null,null,null,null,null,""]
[null,null,null,null,null,"",null,null,null,null,null,"",null,null,null,null,null,"",null,null,null,null,null,"",null,null,null,null,null,""]
["BLOC 2","Approvisionner, mettre en rayon et ranger selon la nature des produits",null,null,null,"",null,null,null,null,null,"",null,null,null,null,null,"",null,null,null,null,null,"",null,null,null,null,null,""]
[null,"Mettre en valeur les produits et l’espace commercial",null,null,null,"",null,null,null,null,null,"",null,null,null,null,null,"",null,null,null,null,null,"",null,null,null,null,null,""]
[null,"Participer aux opérations de conditionnement des produits",null,null,null,"",null,null,null,null,null,"",null,null,null,null,null,"",null,null,null,null,null,"",null,null,null,null,null,""]
[null,"Installer et mettre à jour la signalétique",null,null,null,"",null,null,null,null,null,"",null,null,null,null,null,"",null,null,null,null,null,"",null,null,null,null,null,""]
[null,"Lutter contre la démarque et participer aux opérations d’inventaire",null,null,null,"",null,null,null,null,null,"",null,null,null,null,null,"",null,null,null,null,null,"",null,null,null,null,null,""]
[null,null,null,null,null,"",null,null,null,null,null,"",null,null,null,null,null,"",null,null,null,null,null,"",null,null,null,null,null,""]
[null,null,null,null,null,"",null,null,null,null,null,"",null,null,null,null,null,"",null,null,null,null,null,"",null,null,null,null,null,""]
["BLOC 3","Préparer son environnement de travail",null,null,null,"",null,null,null,null,null,"",null,null,null,null,null,"",null,null,null,null,null,"",null,null,null,null,null,""]
[null,"Prendre contact avec le client",null,null,null,"",null,null,null,null,null,"",null,null,null,null,null,"",null,null,null,null,null,"",null,null,null,null,null,""]
[null,"Accompagner le parcours client dans un contexte omnicanal",null,null,null,"",null,null,null,null,null,"",null,null,null,null,null,"",null,null,null,null,null,"",null,null,null,null,null,""]
[null,"Finaliser la prise en charge du client",null,null,null,"",null,null,null,null,null,"",null,null,null,null,null,"",null,null,null,null,null,"",null,null,null,null,null,""]
[null,"Recevoir les réclamations courantes",null,null,null,"",null,null,null,null,null,"",null,null,null,null,null,"",null,null,null,null,null,"",null,null,null,null,null,""]
[]
["1°)",1,"Novice : Saisir 1 dans la cellule \"Niveau\"","2°)","La date s'incrémente seule lors de la saisie du chiffre du niveau.",null,null,null,null,"5°)","Noter le niveau de difficulté de l'activité."]
[null,2,"Débrouillé : Saisir 2 dans la cellule \"Niveau\""]
[null,3,"Averti : Saisir 3 dans la cellule \"Niveau\"","3°)","Sélectionner les initiales de l'enseignant."]
[null,4,"Expert : Saisir 4 dans la cellule \"Niveau\""]
[null,null,null,"4°)","Puis noter l'activité (PFMP ; Brassens Shop ; Darty...)"]

{"sheet":"Eleve4","index":5,"n_rows":27,"n_cols":32,"rows_kept":27,"cut":false,"hidden":false,"merged":[[1,0,1,27],[3,0,6,0],[3,1,3,2],[5,1,5,2],[6,1,6,2],[10,1,10,2],[11,1,11,2],[12,1,12,2],[13,1,13,2],[16,0,20,0],[16,1,16,2],[17,1,17,2],[18,1,18,2],[19,1,19,2],[20,1,20,2],[9,0,13,0],[9,1,9,2]]}
[]
["Grille de suivi individuelle de formation"]
[null,null,null,"Niveau de l'élève","Prof","Date","Activité","Niveau de difficulté",null,"Niveau de l'élève","Prof","Date","Activité","Niveau de difficulté",null,"Niveau de l'élève","Prof","Date","Activité","Niveau de difficulté",null,"Niveau de l'élève","Prof","Date","Activité","Niveau de difficulté",null,"Niveau de l'élève","Prof","Date","Activité","Niveau de difficulté"]
["BLOC 1","Participer à la passation des commandes fournisseurs",null,null,null,{"$f":"IF(D4<>\"\",TODAY(),\"\")","v":""},null,null,null,null,null,{"$f":"IF(J4<>\"\",TODAY(),\"\")","v":""},null,null,null,null,null,{"$f":"IF(P4<>\"\",TODAY(),\"\")","v":""},null,null,null,null,null,{"$f":"IF(V4<>\"\",TODAY(),\"\")","v":""},null,null,null,null,null,{"$f":"IF(AB4<>\"\",TODAY(),\"\")","v":""}]
[null,"Réceptionner",null,null,null,"",null,null,null,null,null,"",null,null,null,null,null,"",null,null,null,null,null,"",null,null,null,null,null,""]
[null,"Stocker",null,null,null,"",null,null,null,null,null,"",null,null,null,null,null,"",null,null,null,null,null,"",null,null,null,null,null,""]
[null,"Préparer les commandes destinées aux clients",null,null,null,"",null,null,null,null,null,"",null,null,null,null,null,"",null,null,null,null,null,"",null,null,null,null,null,""]
[null,null,null,null,null,"",null,null,null,null,null,"",null,null,null,null,null,"",null,null,null,null,null,"",null,null,null,null,null,""]
[null,null,null,null,null,"",null,null,null,null,null,"",null,null,null,null,null,"",null,null,null,null,null,"",null,null,null,null,null,""]
["BLOC 2","Approvisionner, mettre en rayon et ranger selon la nature des produits",null,null,null,"",null,null,null,null,null,"",null,null,null,null,null,"",null,null,null,null,null,"",null,null,null,null,null,""]
[null,"Mettre en valeur les produits et l’espace commercial",null,null,null,"",null,null,null,null,null,"",null,null,null,null,null,"",null,null,null,null,null,"",null,null,null,null,null,""]
[null,"Participer aux opérations de conditionnement des produits",null,null,null,"",null,null,null,null,null,"",null,null,null,null,null,"",null,null,null,null,null,"",null,null,null,null,null,""]
[null,"Installer et mettre à jour la signalétique",null,null,null,"",null,null,null,null,null,"",null,null,null,null,null,"",null,null,null,null,null,"",null,null,null,null,null,""]
[null,"Lutter contre la démarque et participer aux opérations d’inventaire",null,null,null,"",null,null,null,null,null,"",null,null,null,null,null,"",null,null,null,null,null,"",null,null,null,null,null,""]
[null,null,null,null,null,"",null,null,null,null,null,"",null,null,null,null,null,"",null,null,null,null,null,"",null,null,null,null,null,""]
[null,null,null,null,null,"",null,null,null,null,null,"",null,null,null,null,null,"",null,null,null,null,null,"",null,null,null,null,null,""]
["BLOC 3","Préparer son environnement de travail",null,null,null,"",null,null,null,null,null,"",null,null,null,null,null,"",null,null,null,null,null,"",null,null,null,null,null,""]
[null,"Prendre contact avec le client",null,null,null,"",null,null,null,null,null,"",null,null,null,null,null,"",null,null,null,null,null,"",null,null,null,null,null,""]
[null,"Accompagner le parcours client dans un contexte omnicanal",null,null,null,"",null,null,null,null,null,"",null,null,null,null,null,"",null,null,null,null,null,"",null,null,null,null,null,""]
[null,"Finaliser la prise en charge du client",null,null,null,"",null,null,null,null,null,"",null,null,null,null,null,"",null,null,null,null,null,"",null,null,null,null,null,""]
[null,"Recevoir les réclamations courantes",null,null,null,"",null,null,null,null,null,"",null,null,null,null,null,"",null,null,null,null,null,"",null,null,null,null,null,""]
[]
["1°)",1,"Novice : Saisir 1 dans la cellule \"Niveau\"","2°)","La date s'incrémente seule lors de la saisie du chiffre du niveau.",null,null,null,null,"5°)","Noter le niveau de difficulté de l'activité."]
[null,2,"Débrouillé : Saisir 2 dans la cellule \"Niveau\""]
[null,3,"Averti : Saisir 3 dans la cellule \"Niveau\"","3°)","Sélectionner les initiales de l'enseignant."]
[null,4,"Expert : Saisir 4 dans la cellule \"Niveau\""]
[null,null,null,"4°)","Puis noter l'activité (PFMP ; Brassens Shop ; Darty...)"]

{"sheet":"Eleve5","index":6,"n_rows":27,"n_cols":32,"rows_kept":27,"cut":false,"hidden":false,"merged":[[1,0,1,27],[3,0,6,0],[3,1,3,2],[5,1,5,2],[6,1,6,2],[10,1,10,2],[11,1,11,2],[12,1,12,2],[13,1,13,2],[16,0,20,0],[16,1,16,2],[17,1,17,2],[18,1,18,2],[19,1,19,2],[20,1,20,2],[9,0,13,0],[9,1,9,2]]}
[]
["Grille de suivi individuelle de formation"]
[null,null,null,"Niveau de l'élève","Prof","Date","Activité","Niveau de difficulté",null,"Niveau de l'élève","Prof","Date","Activité","Niveau de difficulté",null,"Niveau de l'élève","Prof","Date","Activité","Niveau de difficulté",null,"Niveau de l'élève","Prof","Date","Activité","Niveau de difficulté",null,"Niveau de l'élève","Prof","Date","Activité","Niveau de difficulté"]
["BLOC 1","Participer à la passation des commandes fournisseurs",null,null,null,{"$f":"IF(D4<>\"\",TODAY(),\"\")","v":""},null,null,null,null,null,{"$f":"IF(J4<>\"\",TODAY(),\"\")","v":""},null,null,null,null,null,{"$f":"IF(P4<>\"\",TODAY(),\"\")","v":""},null,null,null,null,null,{"$f":"IF(V4<>\"\",TODAY(),\"\")","v":""},null,null,null,null,null,{"$f":"IF(AB4<>\"\",TODAY(),\"\")","v":""}]
[null,"Réceptionner",null,null,null,"",null,null,null,null,null,"",null,null,null,null,null,"",null,null,null,null,null,"",null,null,null,null,null,""]
[null,"Stocker",null,null,null,"",null,null,null,null,null,"",null,null,null,null,null,"",null,null,null,null,null,"",null,null,null,null,null,""]
[null,"Préparer les commandes destinées aux clients",null,null,null,"",null,null,null,null,null,"",null,null,null,null,null,"",null,null,null,null,null,"",null,null,null,null,null,""]
[null,null,null,null,null,"",null,null,null,null,null,"",null,null,null,null,null,"",null,null,null,null,null,"",null,null,null,null,null,""]
[null,null,null,null,null,"",null,null,null,null,null,"",null,null,null,null,null,"",null,null,null,null,null,"",null,null,null,null,null,""]
["BLOC 2","Approvisionner, mettre en rayon et ranger selon la nature des produits",null,null,null,"",null,null,null,null,null,"",null,null,null,null,null,"",null,null,null,null,null,"",null,null,null,null,null,""]
[null,"Mettre en valeur les produits et l’espace commercial",null,null,null,"",null,null,null,null,null,"",null,null,null,null,null,"",null,null,null,null,null,"",null,null,null,null,null,""]
[null,"Participer aux opérations de conditionnement des produits",null,null,null,"",null,null,null,null,null,"",null,null,null,null,null,"",null,null,null,null,null,"",null,null,null,null,null,""]
[null,"Installer et mettre à jour la signalétique",null,null,null,"",null,null,null,null,null,"",null,null,null,null,null,"",null,null,null,null,null,"",null,null,null,null,null,""]
[null,"Lutter contre la démarque et participer aux opérations d’inventaire",null,null,null,"",null,null,null,null,null,"",null,null,null,null,null,"",null,null,null,null,null,"",null,null,null,null,null,""]
[null,null,null,null,null,"",null,null,null,null,null,"",null,null,null,null,null,"",null,null,null,null,null,"",null,null,null,null,null,""]
[null,null,null,null,null,"",null,null,null,null,null,"",null,null,null,null,null,"",null,null,null,null,null,"",null,null,null,null,null,""]
["BLOC 3","Préparer son environnement de travail",null,null,null,"",null,null,null,null,null,"",null,null,null,null,null,"",null,null,null,null,null,"",null,null,null,null,null,""]
[null,"Prendre contact avec le client",null,null,null,"",null,null,null,null,null,"",null,null,null,null,null,"",null,null,null,null,null,"",null,null,null,null,null,""]
[null,"Accompagner le parcours client dans un contexte omnicanal",null,null,null,"",null,null,null,null,null,"",null,null,null,null,null,"",null,null,null,null,null,"",null,null,null,null,null,""]
[null,"Finaliser la prise en charge du client",null,null,null,"",null,null,null,null,null,"",null,null,null,null,null,"",null,null,null,null,null,"",null,null,null,null,null,""]
[null,"Recevoir les réclamations courantes",null,null,null,"",null,null,null,null,null,"",null,null,null,null,null,"",null,null,null,null,null,"",null,null,null,null,null,""]
[]
["1°)",1,"Novice : Saisir 1 dans la cellule \"Niveau\"","2°)","La date s'incrémente seule lors de la saisie du chiffre du niveau.",null,null,null,null,"5°)","Noter le niveau de difficulté de l'activité."]
[null,2,"Débrouillé : Saisir 2 dans la cellule \"Niveau\""]
[null,3,"Averti : Saisir 3 dans la cellule \"Niveau\"","3°)","Sélectionner les initiales de l'enseignant."]
[null,4,"Expert : Saisir 4 dans la cellule \"Niveau\""]
[null,null,null,"4°)","Puis noter l'activité (PFMP ; Brassens Shop ; Darty...)"]

{"sheet":"Eleve6","index":7,"n_rows":27,"n_cols":32,"rows_kept":27,"cut":false,"hidden":false,"merged":[[1,0,1,27],[3,0,6,0],[3,1,3,2],[5,1,5,2],[6,1,6,2],[10,1,10,2],[11,1,11,2],[12,1,12,2],[13,1,13,2],[16,0,20,0],[16,1,16,2],[17,1,17,2],[18,1,18,2],[19,1,19,2],[20,1,20,2],[9,0,13,0],[9,1,9,2]]}
[]
["Grille de suivi individuelle de formation"]
[null,null,null,"Niveau de l'élève","Prof","Date","Activité","Niveau de difficulté",null,"Niveau de l'élève","Prof","Date","Activité","Niveau de difficulté",null,"Niveau de l'élève","Prof","Date","Activité","Niveau de difficulté",null,"Niveau de l'élève","Prof","Date","Activité","Niveau de difficulté",null,"Niveau de l'élève","Prof","Date","Activité","Niveau de difficulté"]
["BLOC 1","Participer à la passation des commandes fournisseurs",null,null,null,{"$f":"IF(D4<>\"\",TODAY(),\"\")","v":""},null,null,null,null,null,{"$f":"IF(J4<>\"\",TODAY(),\"\")","v":""},null,null,null,null,null,{"$f":"IF(P4<>\"\",TODAY(),\"\")","v":""},null,null,null,null,null,{"$f":"IF(V4<>\"\",TODAY(),\"\")","v":""},null,null,null,null,null,{"$f":"IF(AB4<>\"\",TODAY(),\"\")","v":""}]
[null,"Réceptionner",null,null,null,"",null,null,null,null,null,"",null,null,null,null,null,"",null,null,null,null,null,"",null,null,null,null,null,""]
[null,"Stocker",null,null,null,"",null,null,null,null,null,"",null,null,null,null,null,"",null,null,null,null,null,"",null,null,null,null,null,""]
[null,"Préparer les commandes destinées aux clients",null,null,null,"",null,null,null,null,null,"",null,null,null,null,null,"",null,null,null,null,null,"",null,null,null,null,null,""]
[null,null,null,null,null,"",null,null,null,null,null,"",null,null,null,null,null,"",null,null,null,null,null,"",null,null,null,null,null,""]
[null,null,null,null,null,"",null,null,null,null,null,"",null,null,null,null,null,"",null,null,null,null,null,"",null,null,null,null,null,""]
["BLOC 2","Approvisionner, mettre en rayon et ranger selon la nature des produits",null,null,null,"",null,null,null,null,null,"",null,null,null,null,null,"",null,null,null,null,null,"",null,null,null,null,null,""]
[null,"Mettre en valeur les produits et l’espace commercial",null,null,null,"",null,null,null,null,null,"",null,null,null,null,null,"",null,null,null,null,null,"",null,null,null,null,null,""]
[null,"Participer aux opérations de conditionnement des produits",null,null,null,"",null,null,null,null,null,"",null,null,null,null,null,"",null,null,null,null,null,"",null,null,null,null,null,""]
[null,"Installer et mettre à jour la signalétique",null,null,null,"",null,null,null,null,null,"",null,null,null,null,null,"",null,null,null,null,null,"",null,null,null,null,null,""]
[null,"Lutter contre la démarque et participer aux opérations d’inventaire",null,null,null,"",null,null,null,null,null,"",null,null,null,null,null,"",null,null,null,null,null,"",null,null,null,null,null,""]
[null,null,null,null,null,"",null,null,null,null,null,"",null,null,null,null,null,"",null,null,null,null,null,"",null,null,null,null,null,""]
[null,null,null,null,null,"",null,null,null,null,null,"",null,null,null,null,null,"",null,null,null,null,null,"",null,null,null,null,null,""]
["BLOC 3","Préparer son environnement de travail",null,null,null,"",null,null,null,null,null,"",null,null,null,null,null,"",null,null,null,null,null,"",null,null,null,null,null,""]
[null,"Prendre contact avec le client",null,null,null,"",null,null,null,null,null,"",null,null,null,null,null,"",null,null,null,null,null,"",null,null,null,null,null,""]
[null,"Accompagner le parcours client dans un contexte omnicanal",null,null,null,"",null,null,null,null,null,"",null,null,null,null,null,"",null,null,null,null,null,"",null,null,null,null,null,""]
[null,"Finaliser la prise en charge du client",null,null,null,"",null,null,null,null,null,"",null,null,null,null,null,"",null,null,null,null,null,"",null,null,null,null,null,""]
[null,"Recevoir les réclamations courantes",null,null,null,"",null,null,null,null,null,"",null,null,null,null,null,"",null,null,null,null,null,"",null,null,null,null,null,""]
[]
["1°)",1,"Novice : Saisir 1 dans la cellule \"Niveau\"","2°)","La date s'incrémente seule lors de la saisie du chiffre du niveau.",null,null,null,null,"5°)","Noter le niveau de difficulté de l'activité."]
[null,2,"Débrouillé : Saisir 2 dans la cellule \"Niveau\""]
[null,3,"Averti : Saisir 3 dans la cellule \"Niveau\"","3°)","Sélectionner les initiales de l'enseignant."]
[null,4,"Expert : Saisir 4 dans la cellule \"Niveau\""]
[null,null,null,"4°)","Puis noter l'activité (PFMP ; Brassens Shop ; Darty...)"]

{"sheet":"Eleve7","index":8,"n_rows":27,"n_cols":32,"rows_kept":27,"cut":false,"hidden":false,"merged":[[1,0,1,27],[3,0,6,0],[3,1,3,2],[5,1,5,2],[6,1,6,2],[10,1,10,2],[11,1,11,2],[12,1,12,2],[13,1,13,2],[16,0,20,0],[16,1,16,2],[17,1,17,2],[18,1,18,2],[19,1,19,2],[20,1,20,2],[9,0,13,0],[9,1,9,2]]}
[]
["Grille de suivi individuelle de formation"]
[null,null,null,"Niveau de l'élève","Prof","Date","Activité","Niveau de difficulté",null,"Niveau de l'élève","Prof","Date","Activité","Niveau de difficulté",null,"Niveau de l'élève","Prof","Date","Activité","Niveau de difficulté",null,"Niveau de l'élève","Prof","Date","Activité","Niveau de difficulté",null,"Niveau de l'élève","Prof","Date","Activité","Niveau de difficulté"]
["BLOC 1","Participer à la passation des commandes fournisseurs",null,null,null,{"$f":"IF(D4<>\"\",TODAY(),\"\")","v":""},null,null,null,null,null,{"$f":"IF(J4<>\"\",TODAY(),\"\")","v":""},null,null,null,null,null,{"$f":"IF(P4<>\"\",TODAY(),\"\")","v":""},null,null,null,null,null,{"$f":"IF(V4<>\"\",TODAY(),\"\")","v":""},null,null,null,null,null,{"$f":"IF(AB4<>\"\",TODAY(),\"\")","v":""}]
[null,"Réceptionner",null,null,null,"",null,null,null,null,null,"",null,null,null,null,null,"",null,null,null,null,null,"",null,null,null,null,null,""]
[null,"Stocker",null,null,null,"",null,null,null,null,null,"",null,null,null,null,null,"",null,null,null,null,null,"",null,null,null,null,null,""]
[null,"Préparer les commandes destinées aux clients",null,null,null,"",null,null,null,null,null,"",null,null,null,null,null,"",null,null,null,null,null,"",null,null,null,null,null,""]
[null,null,null,null,null,"",null,null,null,null,null,"",null,null,null,null,null,"",null,null,null,null,null,"",null,null,null,null,null,""]
[null,null,null,null,null,"",null,null,null,null,null,"",null,null,null,null,null,"",null,null,null,null,null,"",null,null,null,null,null,""]
["BLOC 2","Approvisionner, mettre en rayon et ranger selon la nature des produits",null,null,null,"",null,null,null,null,null,"",null,null,null,null,null,"",null,null,null,null,null,"",null,null,null,null,null,""]
[null,"Mettre en valeur les produits et l’espace commercial",null,null,null,"",null,null,null,null,null,"",null,null,null,null,null,"",null,null,null,null,null,"",null,null,null,null,null,""]
[null,"Participer aux opérations de conditionnement des produits",null,null,null,"",null,null,null,null,null,"",null,null,null,null,null,"",null,null,null,null,null,"",null,null,null,null,null,""]
[null,"Installer et mettre à jour la signalétique",null,null,null,"",null,null,null,null,null,"",null,null,null,null,null,"",null,null,null,null,null,"",null,null,null,null,null,""]
[null,"Lutter contre la démarque et participer aux opérations d’inventaire",null,null,null,"",null,null,null,null,null,"",null,null,null,null,null,"",null,null,null,null,null,"",null,null,null,null,null,""]
[null,null,null,null,null,"",null,null,null,null,null,"",null,null,null,null,null,"",null,null,null,null,null,"",null,null,null,null,null,""]
[null,null,null,null,null,"",null,null,null,null,null,"",null,null,null,null,null,"",null,null,null,null,null,"",null,null,null,null,null,""]
["BLOC 3","Préparer son environnement de travail",null,null,null,"",null,null,null,null,null,"",null,null,null,null,null,"",null,null,null,null,null,"",null,null,null,null,null,""]
[null,"Prendre contact avec le client",null,null,null,"",null,null,null,null,null,"",null,null,null,null,null,"",null,null,null,null,null,"",null,null,null,null,null,""]
[null,"Accompagner le parcours client dans un contexte omnicanal",null,null,null,"",null,null,null,null,null,"",null,null,null,null,null,"",null,null,null,null,null,"",null,null,null,null,null,""]
[null,"Finaliser la prise en charge du client",null,null,null,"",null,null,null,null,null,"",null,null,null,null,null,"",null,null,null,null,null,"",null,null,null,null,null,""]
[null,"Recevoir les réclamations courantes",null,null,null,"",null,null,null,null,null,"",null,null,null,null,null,"",null,null,null,null,null,"",null,null,null,null,null,""]
[]
["1°)",1,"Novice : Saisir 1 dans la cellule \"Niveau\"","2°)","La date s'incrémente seule lors de la saisie du chiffre du niveau.",null,null,null,null,"5°)","Noter le niveau de difficulté de l'activité."]
[null,2,"Débrouillé : Saisir 2 dans la cellule \"Niveau\""]
[null,3,"Averti : Saisir 3 dans la cellule \"Niveau\"","3°)","Sélectionner les initiales de l'enseignant."]
[null,4,"Expert : Saisir 4 dans la cellule \"Niveau\""]
[null,null,null,"4°)","Puis noter l'activité (PFMP ; Brassens Shop ; Darty...)"]

{"sheet":"Eleve8","index":9,"n_rows":27,"n_cols":32,"rows_kept":27,"cut":false,"hidden":false,"merged":[[1,0,1,27],[3,0,6,0],[3,1,3,2],[5,1,5,2],[6,1,6,2],[10,1,10,2],[11,1,11,2],[12,1,12,2],[13,1,13,2],[16,0,20,0],[16,1,16,2],[17,1,17,2],[18,1,18,2],[19,1,19,2],[20,1,20,2],[9,0,13,0],[9,1,9,2]]}
[]
["Grille de suivi individuelle de formation"]
[null,null,null,"Niveau de l'élève","Prof","Date","Activité","Niveau de difficulté",null,"Niveau de l'élève","Prof","Date","Activité","Niveau de difficulté",null,"Niveau de l'élève","Prof","Date","Activité","Niveau de difficulté",null,"Niveau de l'élève","Prof","Date","Activité","Niveau de difficulté",null,"Niveau de l'élève","Prof","Date","Activité","Niveau de difficulté"]
["BLOC 1","Participer à la passation des commandes fournisseurs",null,null,null,{"$f":"IF(D4<>\"\",TODAY(),\"\")","v":""},null,null,null,null,null,null,null,null,null,null,null,{"$f":"IF(P4<>\"\",TODAY(),\"\")","v":""},null,null,null,null,null,{"$f":"IF(V4<>\"\",TODAY(),\"\")","v":""},null,null,null,null,null,{"$f":"IF(AB4<>\"\",TODAY(),\"\")","v":""}]
[null,"Réceptionner",null,null,null,"",null,null,null,null,null,{"$f":"IF(J5<>\"\",TODAY(),\"\")","v":""},null,null,null,null,null,"",null,null,null,null,null,"",null,null,null,null,null,""]
[null,"Stocker",null,null,null,"",null,null,null,null,null,"",null,null,null,null,null,"",null,null,null,null,null,"",null,null,null,null,null,""]
[null,"Préparer les commandes destinées aux clients",null,null,null,"",null,null,null,null,null,"",null,null,null,null,null,"",null,null,null,null,null,"",null,null,null,null,null,""]
[null,null,null,null,null,null,null,null,null,null,null,"",null,null,null,null,null,"",null,null,null,null,null,"",null,null,null,null,null,""]
[null,null,null,null,null,"",null,null,null,null,null,"",null,null,null,null,null,"",null,null,null,null,null,"",null,null,null,null,null,""]
["BLOC 2","Approvisionner, mettre en rayon et ranger selon la nature des produits",null,null,null,"",null,null,null,null,null,"",null,null,null,null,null,"",null,null,null,null,null,"",null,null,null,null,null,""]
[null,"Mettre en valeur les produits et l’espace commercial",null,null,null,"",null,null,null,null,null,"",null,null,null,null,null,"",null,null,null,null,null,"",null,null,null,null,null,""]
[null,"Participer aux opérations de conditionnement des produits",null,null,null,"",null,null,null,null,null,"",null,null,null,null,null,"",null,null,null,null,null,"",null,null,null,null,null,""]
[null,"Installer et mettre à jour la signalétique",null,null,null,"",null,null,null,null,null,"",null,null,null,null,null,"",null,null,null,null,null,"",null,null,null,null,null,""]
[null,"Lutter contre la démarque et participer aux opérations d’inventaire",null,null,null,"",null,null,null,null,null,"",null,null,null,null,null,"",null,null,null,null,null,"",null,null,null,null,null,""]
[null,null,null,null,null,"",null,null,null,null,null,"",null,null,null,null,null,"",null,null,null,null,null,"",null,null,null,null,null,""]
[null,null,null,null,null,"",null,null,null,null,null,"",null,null,null,null,null,"",null,null,null,null,null,"",null,null,null,null,null,""]
["BLOC 3","Préparer son environnement de travail",null,null,null,"",null,null,null,null,null,"",null,null,null,null,null,"",null,null,null,null,null,"",null,null,null,null,null,""]
[null,"Prendre contact avec le client",null,null,null,"",null,null,null,null,null,"",null,null,null,null,null,"",null,null,null,null,null,"",null,null,null,null,null,""]
[null,"Accompagner le parcours client dans un contexte omnicanal",null,null,null,"",null,null,null,null,null,"",null,null,null,null,null,"",null,null,null,null,null,"",null,null,null,null,null,""]
[null,"Finaliser la prise en charge du client",null,null,null,"",null,null,null,null,null,"",null,null,null,null,null,"",null,null,null,null,null,"",null,null,null,null,null,""]
[null,"Recevoir les réclamations courantes",null,null,null,"",null,null,null,null,null,"",null,null,null,null,null,"",null,null,null,null,null,"",null,null,null,null,null,""]
[]
["1°)",1,"Novice : Saisir 1 dans la cellule \"Niveau\"","2°)","La date s'incrémente seule lors de la saisie du chiffre du niveau.",null,null,null,null,"5°)","Noter le niveau de difficulté de l'activité."]
[null,2,"Débrouillé : Saisir 2 dans la cellule \"Niveau\""]
[null,3,"Averti : Saisir 3 dans la cellule \"Niveau\"","3°)","Sélectionner les initiales de l'enseignant."]
[null,4,"Expert : Saisir 4 dans la cellule \"Niveau\""]
[null,null,null,"4°)","Puis noter l'activité (PFMP ; Brassens Shop ; Darty...)"]

{"sheet":"Eleve9","index":10,"n_rows":27,"n_cols":32,"rows_kept":27,"cut":false,"hidden":false,"merged":[[1,0,1,27],[3,0,6,0],[3,1,3,2],[5,1,5,2],[6,1,6,2],[10,1,10,2],[11,1,11,2],[12,1,12,2],[13,1,13,2],[16,0,20,0],[16,1,16,2],[17,1,17,2],[18,1,18,2],[19,1,19,2],[20,1,20,2],[9,0,13,0],[9,1,9,2]]}
[]
["Grille de suivi individuelle de formation"]
[null,null,null,"Niveau de l'élève","Prof","Date","Activité","Niveau de difficulté",null,"Niveau de l'élève","Prof","Date","Activité","Niveau de difficulté",null,"Niveau de l'élève","Prof","Date","Activité","Niveau de difficulté",null,"Niveau de l'élève","Prof","Date","Activité","Niveau de difficulté",null,"Niveau de l'élève","Prof","Date","Activité","Niveau de difficulté"]
["BLOC 1","Participer à la passation des commandes fournisseurs",null,null,null,{"$f":"IF(D4<>\"\",TODAY(),\"\")","v":""},null,null,null,null,null,null,null,null,null,null,null,{"$f":"IF(P4<>\"\",TODAY(),\"\")","v":""},null,null,null,null,null,{"$f":"IF(V4<>\"\",TODAY(),\"\")","v":""},null,null,null,null,null,{"$f":"IF(AB4<>\"\",TODAY(),\"\")","v":""}]
[null,"Réceptionner",null,null,null,"",null,null,null,null,null,{"$f":"IF(J5<>\"\",TODAY(),\"\")","v":""},null,null,null,null,null,"",null,null,null,null,null,"",null,null,null,null,null,""]
[null,"Stocker",null,null,null,"",null,null,null,null,null,"",null,null,null,null,null,"",null,null,null,null,null,"",null,null,null,null,null,""]
[null,"Préparer les commandes destinées aux clients",null,null,null,"",null,null,null,null,null,"",null,null,null,null,null,"",null,null,null,null,null,"",null,null,null,null,null,""]
[null,null,null,null,null,null,null,null,null,null,null,"",null,null,null,null,null,"",null,null,null,null,null,"",null,null,null,null,null,""]
[null,null,null,null,null,"",null,null,null,null,null,"",null,null,null,null,null,"",null,null,null,null,null,"",null,null,null,null,null,""]
["BLOC 2","Approvisionner, mettre en rayon et ranger selon la nature des produits",null,null,null,"",null,null,null,null,null,"",null,null,null,null,null,"",null,null,null,null,null,"",null,null,null,null,null,""]
[null,"Mettre en valeur les produits et l’espace commercial",null,null,null,"",null,null,null,null,null,"",null,null,null,null,null,"",null,null,null,null,null,"",null,null,null,null,null,""]
[null,"Participer aux opérations de conditionnement des produits",null,null,null,"",null,null,null,null,null,"",null,null,null,null,null,"",null,null,null,null,null,"",null,null,null,null,null,""]
[null,"Installer et mettre à jour la signalétique",null,null,null,"",null,null,null,null,null,"",null,null,null,null,null,"",null,null,null,null,null,"",null,null,null,null,null,""]
[null,"Lutter contre la démarque et participer aux opérations d’inventaire",null,null,null,"",null,null,null,null,null,"",null,null,null,null,null,"",null,null,null,null,null,"",null,null,null,null,null,""]
[null,null,null,null,null,"",null,null,null,null,null,"",null,null,null,null,null,"",null,null,null,null,null,"",null,null,null,null,null,""]
[null,null,null,null,null,"",null,null,null,null,null,"",null,null,null,null,null,"",null,null,null,null,null,"",null,null,null,null,null,""]
["BLOC 3","Préparer son environnement de travail",null,null,null,"",null,null,null,null,null,"",null,null,null,null,null,"",null,null,null,null,null,"",null,null,null,null,null,""]
[null,"Prendre contact avec le client",null,null,null,"",null,null,null,null,null,"",null,null,null,null,null,"",null,null,null,null,null,"",null,null,null,null,null,""]
[null,"Accompagner le parcours client dans un contexte omnicanal",null,null,null,"",null,null,null,null,null,"",null,null,null,null,null,"",null,null,null,null,null,"",null,null,null,null,null,""]
[null,"Finaliser la prise en charge du client",null,null,null,"",null,null,null,null,null,"",null,null,null,null,null,"",null,null,null,null,null,"",null,null,null,null,null,""]
[null,"Recevoir les réclamations courantes",null,null,null,"",null,null,null,null,null,"",null,null,null,null,null,"",null,null,null,null,null,"",null,null,null,null,null,""]
[]
["1°)",1,"Novice : Saisir 1 dans la cellule \"Niveau\"","2°)","La date s'incrémente seule lors de la saisie du chiffre du niveau.",null,null,null,null,"5°)","Noter le niveau de difficulté de l'activité."]
[null,2,"Débrouillé : Saisir 2 dans la cellule \"Niveau\""]
[null,3,"Averti : Saisir 3 dans la cellule \"Niveau\"","3°)","Sélectionner les initiales de l'enseignant."]
[null,4,"Expert : Saisir 4 dans la cellule \"Niveau\""]
[null,null,null,"4°)","Puis noter l'activité (PFMP ; Brassens Shop ; Darty...)"]

{"sheet":"Eleve10","index":11,"n_rows":27,"n_cols":32,"rows_kept":27,"cut":false,"hidden":false,"merged":[[1,0,1,27],[3,0,6,0],[3,1,3,2],[5,1,5,2],[6,1,6,2],[10,1,10,2],[11,1,11,2],[12,1,12,2],[13,1,13,2],[16,0,20,0],[16,1,16,2],[17,1,17,2],[18,1,18,2],[19,1,19,2],[20,1,20,2],[9,0,13,0],[9,1,9,2]]}
[]
["Grille de suivi individuelle de formation"]
[null,null,null,"Niveau de l'élève","Prof","Date","Activité","Niveau de difficulté",null,"Niveau de l'élève","Prof","Date","Activité","Niveau de difficulté",null,"Niveau de l'élève","Prof","Date","Activité","Niveau de difficulté",null,"Niveau de l'élève","Prof","Date","Activité","Niveau de difficulté",null,"Niveau de l'élève","Prof","Date","Activité","Niveau de difficulté"]
["BLOC 1","Participer à la passation des commandes fournisseurs",null,null,null,{"$f":"IF(D4<>\"\",TODAY(),\"\")","v":""},null,null,null,null,null,null,null,null,null,null,null,{"$f":"IF(P4<>\"\",TODAY(),\"\")","v":""},null,null,null,null,null,{"$f":"IF(V4<>\"\",TODAY(),\"\")","v":""},null,null,null,null,null,{"$f":"IF(AB4<>\"\",TODAY(),\"\")","v":""}]
[null,"Réceptionner",null,null,null,"",null,null,null,null,null,{"$f":"IF(J5<>\"\",TODAY(),\"\")","v":""},null,null,null,null,null,"",null,null,null,null,null,"",null,null,null,null,null,""]
[null,"Stocker",null,null,null,"",null,null,null,null,null,"",null,null,null,null,null,"",null,null,null,null,null,"",null,null,null,null,null,""]
[null,"Préparer les commandes destinées aux clients",null,null,null,"",null,null,null,null,null,"",null,null,null,null,null,"",null,null,null,null,null,"",null,null,null,null,null,""]
[null,null,null,null,null,null,null,null,null,null,null,"",null,null,null,null,null,"",null,null,null,null,null,"",null,null,null,null,null,""]
[null,null,null,null,null,"",null,null,null,null,null,"",null,null,null,null,null,"",null,null,null,null,null,"",null,null,null,null,null,""]
["BLOC 2","Approvisionner, mettre en rayon et ranger selon la nature des produits",null,null,null,"",null,null,null,null,null,"",null,null,null,null,null,"",null,null,null,null,null,"",null,null,null,null,null,""]
[null,"Mettre en valeur les produits et l’espace commercial",null,null,null,"",null,null,null,null,null,"",null,null,null,null,null,"",null,null,null,null,null,"",null,null,null,null,null,""]
[null,"Participer aux opérations de conditionnement des produits",null,null,null,"",null,null,null,null,null,"",null,null,null,null,null,"",null,null,null,null,null,"",null,null,null,null,null,""]
[null,"Installer et mettre à jour la signalétique",null,null,null,"",null,null,null,null,null,"",null,null,null,null,null,"",null,null,null,null,null,"",null,null,null,null,null,""]
[null,"Lutter contre la démarque et participer aux opérations d’inventaire",null,null,null,"",null,null,null,null,null,"",null,null,null,null,null,"",null,null,null,null,null,"",null,null,null,null,null,""]
[null,null,null,null,null,"",null,null,null,null,null,"",null,null,null,null,null,"",null,null,null,null,null,"",null,null,null,null,null,""]
[null,null,null,null,null,"",null,null,null,null,null,"",null,null,null,null,null,"",null,null,null,null,null,"",null,null,null,null,null,""]
["BLOC 3","Préparer son environnement de travail",null,null,null,"",null,null,null,null,null,"",null,null,null,null,null,"",null,null,null,null,null,"",null,null,null,null,null,""]
[null,"Prendre contact avec le client",null,null,null,"",null,null,null,null,null,"",null,null,null,null,null,"",null,null,null,null,null,"",null,null,null,null,null,""]
[null,"Accompagner le parcours client dans un contexte omnicanal",null,null,null,"",null,null,null,null,null,"",null,null,null,null,null,"",null,null,null,null,null,"",null,null,null,null,null,""]
[null,"Finaliser la prise en charge du client",null,null,null,"",null,null,null,null,null,"",null,null,null,null,null,"",null,null,null,null,null,"",null,null,null,null,null,""]
[null,"Recevoir les réclamations courantes",null,null,null,"",null,null,null,null,null,"",null,null,null,null,null,"",null,null,null,null,null,"",null,null,null,null,null,""]
[]
["1°)",1,"Novice : Saisir 1 dans la cellule \"Niveau\"","2°)","La date s'incrémente seule lors de la saisie du chiffre du niveau.",null,null,null,null,"5°)","Noter le niveau de difficulté de l'activité."]
[null,2,"Débrouillé : Saisir 2 dans la cellule \"Niveau\""]
[null,3,"Averti : Saisir 3 dans la cellule \"Niveau\"","3°)","Sélectionner les initiales de l'enseignant."]
[null,4,"Expert : Saisir 4 dans la cellule \"Niveau\""]
[null,null,null,"4°)","Puis noter l'activité (PFMP ; Brassens Shop ; Darty...)"]

{"sheet":"Eleve11","index":12,"n_rows":27,"n_cols":32,"rows_kept":27,"cut":false,"hidden":false,"merged":[[1,0,1,27],[3,0,6,0],[3,1,3,2],[5,1,5,2],[6,1,6,2],[10,1,10,2],[11,1,11,2],[12,1,12,2],[13,1,13,2],[16,0,20,0],[16,1,16,2],[17,1,17,2],[18,1,18,2],[19,1,19,2],[20,1,20,2],[9,0,13,0],[9,1,9,2]]}
[]
["Grille de suivi individuelle de formation"]
[null,null,null,"Niveau de l'élève","Prof","Date","Activité","Niveau de difficulté",null,"Niveau de l'élève","Prof","Date","Activité","Niveau de difficulté",null,"Niveau de l'élève","Prof","Date","Activité","Niveau de difficulté",null,"Niveau de l'élève","Prof","Date","Activité","Niveau de difficulté",null,"Niveau de l'élève","Prof","Date","Activité","Niveau de difficulté"]
["BLOC 1","Participer à la passation des commandes fournisseurs",null,null,null,{"$f":"IF(D4<>\"\",TODAY(),\"\")","v":""},null,null,null,null,null,null,null,null,null,null,null,{"$f":"IF(P4<>\"\",TODAY(),\"\")","v":""},null,null,null,null,null,{"$f":"IF(V4<>\"\",TODAY(),\"\")","v":""},null,null,null,null,null,{"$f":"IF(AB4<>\"\",TODAY(),\"\")","v":""}]
[null,"Réceptionner",null,null,null,"",null,null,null,null,null,{"$f":"IF(J5<>\"\",TODAY(),\"\")","v":""},null,null,null,null,null,"",null,null,null,null,null,"",null,null,null,null,null,""]
[null,"Stocker",null,null,null,"",null,null,null,null,null,"",null,null,null,null,null,"",null,null,null,null,null,"",null,null,null,null,null,""]
[null,"Préparer les commandes destinées aux clients",null,null,null,"",null,null,null,null,null,"",null,null,null,null,null,"",null,null,null,null,null,"",null,null,null,null,null,""]
[null,null,null,null,null,null,null,null,null,null,null,"",null,null,null,null,null,"",null,null,null,null,null,"",null,null,null,null,null,""]
[null,null,null,null,null,"",null,null,null,null,null,"",null,null,null,null,null,"",null,null,null,null,null,"",null,null,null,null,null,""]
["BLOC 2","Approvisionner, mettre en rayon et ranger selon la nature des produits",null,null,null,"",null,null,null,null,null,"",null,null,null,null,null,"",null,null,null,null,null,"",null,null,null,null,null,""]
[null,"Mettre en valeur les produits et l’espace commercial",null,null,null,"",null,null,null,null,null,"",null,null,null,null,null,"",null,null,null,null,null,"",null,null,null,null,null,""]
[null,"Participer aux opérations de conditionnement des produits",null,null,null,"",null,null,null,null,null,"",null,null,null,null,null,"",null,null,null,null,null,"",null,null,null,null,null,""]
[null,"Installer et mettre à jour la signalétique",null,null,null,"",null,null,null,null,null,"",null,null,null,null,null,"",null,null,null,null,null,"",null,null,null,null,null,""]
[null,"Lutter contre la démarque et participer aux opérations d’inventaire",null,null,null,"",null,null,null,null,null,"",null,null,null,null,null,"",null,null,null,null,null,"",null,null,null,null,null,""]
[null,null,null,null,null,"",null,null,null,null,null,"",null,null,null,null,null,"",null,null,null,null,null,"",null,null,null,null,null,""]
[null,null,null,null,null,"",null,null,null,null,null,"",null,null,null,null,null,"",null,null,null,null,null,"",null,null,null,null,null,""]
["BLOC 3","Préparer son environnement de travail",null,null,null,"",null,null,null,null,null,"",null,null,null,null,null,"",null,null,null,null,null,"",null,null,null,null,null,""]
[null,"Prendre contact avec le client",null,null,null,"",null,null,null,null,null,"",null,null,null,null,null,"",null,null,null,null,null,"",null,null,null,null,null,""]
[null,"Accompagner le parcours client dans un contexte omnicanal",null,null,null,"",null,null,null,null,null,"",null,null,null,null,null,"",null,null,null,null,null,"",null,null,null,null,null,""]
[null,"Finaliser la prise en charge du client",null,null,null,"",null,null,null,null,null,"",null,null,null,null,null,"",null,null,null,null,null,"",null,null,null,null,null,""]
[null,"Recevoir les réclamations courantes",null,null,null,"",null,null,null,null,null,"",null,null,null,null,null,"",null,null,null,null,null,"",null,null,null,null,null,""]
[]
["1°)",1,"Novice : Saisir 1 dans la cellule \"Niveau\"","2°)","La date s'incrémente seule lors de la saisie du chiffre du niveau.",null,null,null,null,"5°)","Noter le niveau de difficulté de l'activité."]
[null,2,"Débrouillé : Saisir 2 dans la cellule \"Niveau\""]
[null,3,"Averti : Saisir 3 dans la cellule \"Niveau\"","3°)","Sélectionner les initiales de l'enseignant."]
[null,4,"Expert : Saisir 4 dans la cellule \"Niveau\""]
[null,null,null,"4°)","Puis noter l'activité (PFMP ; Brassens Shop ; Darty...)"]

{"sheet":"Eleve12","index":13,"n_rows":27,"n_cols":32,"rows_kept":27,"cut":false,"hidden":false,"merged":[[1,0,1,27],[3,0,6,0],[3,1,3,2],[5,1,5,2],[6,1,6,2],[10,1,10,2],[11,1,11,2],[12,1,12,2],[13,1,13,2],[16,0,20,0],[16,1,16,2],[17,1,17,2],[18,1,18,2],[19,1,19,2],[20,1,20,2],[9,0,13,0],[9,1,9,2]]}
[]
["Grille de suivi individuelle de formation"]
[null,null,null,"Niveau de l'élève","Prof","Date","Activité","Niveau de difficulté",null,"Niveau de l'élève","Prof","Date","Activité","Niveau de difficulté",null,"Niveau de l'élève","Prof","Date","Activité","Niveau de difficulté",null,"Niveau de l'élève","Prof","Date","Activité","Niveau de difficulté",null,"Niveau de l'élève","Prof","Date","Activité","Niveau de difficulté"]
["BLOC 1","Participer à la passation des commandes fournisseurs",null,null,null,{"$f":"IF(D4<>\"\",TODAY(),\"\")","v":""},null,null,null,null,null,null,null,null,null,null,null,{"$f":"IF(P4<>\"\",TODAY(),\"\")","v":""},null,null,null,null,null,{"$f":"IF(V4<>\"\",TODAY(),\"\")","v":""},null,null,null,null,null,{"$f":"IF(AB4<>\"\",TODAY(),\"\")","v":""}]
[null,"Réceptionner",null,null,null,"",null,null,null,null,null,{"$f":"IF(J5<>\"\",TODAY(),\"\")","v":""},null,null,null,null,null,"",null,null,null,null,null,"",null,null,null,null,null,""]
[null,"Stocker",null,null,null,"",null,null,null,null,null,"",null,null,null,null,null,"",null,null,null,null,null,"",null,null,null,null,null,""]
[null,"Préparer les commandes destinées aux clients",null,null,null,"",null,null,null,null,null,"",null,null,null,null,null,"",null,null,null,null,null,"",null,null,null,null,null,""]
[null,null,null,null,null,null,null,null,null,null,null,"",null,null,null,null,null,"",null,null,null,null,null,"",null,null,null,null,null,""]
[null,null,null,null,null,"",null,null,null,null,null,"",null,null,null,null,null,"",null,null,null,null,null,"",null,null,null,null,null,""]
["BLOC 2","Approvisionner, mettre en rayon et ranger selon la nature des produits",null,null,null,"",null,null,null,null,null,"",null,null,null,null,null,"",null,null,null,null,null,"",null,null,null,null,null,""]
[null,"Mettre en valeur les produits et l’espace commercial",null,null,null,"",null,null,null,null,null,"",null,null,null,null,null,"",null,null,null,null,null,"",null,null,null,null,null,""]
[null,"Participer aux opérations de conditionnement des produits",null,null,null,"",null,null,null,null,null,"",null,null,null,null,null,"",null,null,null,null,null,"",null,null,null,null,null,""]
[null,"Installer et mettre à jour la signalétique",null,null,null,"",null,null,null,null,null,"",null,null,null,null,null,"",null,null,null,null,null,"",null,null,null,null,null,""]
[null,"Lutter contre la démarque et participer aux opérations d’inventaire",null,null,null,"",null,null,null,null,null,"",null,null,null,null,null,"",null,null,null,null,null,"",null,null,null,null,null,""]
[null,null,null,null,null,"",null,null,null,null,null,"",null,null,null,null,null,"",null,null,null,null,null,"",null,null,null,null,null,""]
[null,null,null,null,null,"",null,null,null,null,null,"",null,null,null,null,null,"",null,null,null,null,null,"",null,null,null,null,null,""]
["BLOC 3","Préparer son environnement de travail",null,null,null,"",null,null,null,null,null,"",null,null,null,null,null,"",null,null,null,null,null,"",null,null,null,null,null,""]
[null,"Prendre contact avec le client",null,null,null,"",null,null,null,null,null,"",null,null,null,null,null,"",null,null,null,null,null,"",null,null,null,null,null,""]
[null,"Accompagner le parcours client dans un contexte omnicanal",null,null,null,"",null,null,null,null,null,"",null,null,null,null,null,"",null,null,null,null,null,"",null,null,null,null,null,""]
[null,"Finaliser la prise en charge du client",null,null,null,"",null,null,null,null,null,"",null,null,null,null,null,"",null,null,null,null,null,"",null,null,null,null,null,""]
[null,"Recevoir les réclamations courantes",null,null,null,"",null,null,null,null,null,"",null,null,null,null,null,"",null,null,null,null,null,"",null,null,null,null,null,""]
[]
["1°)",1,"Novice : Saisir 1 dans la cellule \"Niveau\"","2°)","La date s'incrémente seule lors de la saisie du chiffre du niveau.",null,null,null,null,"5°)","Noter le niveau de difficulté de l'activité."]
[null,2,"Débrouillé : Saisir 2 dans la cellule \"Niveau\""]
[null,3,"Averti : Saisir 3 dans la cellule \"Niveau\"","3°)","Sélectionner les initiales de l'enseignant."]
[null,4,"Expert : Saisir 4 dans la cellule \"Niveau\""]
[null,null,null,"4°)","Puis noter l'activité (PFMP ; Brassens Shop ; Darty...)"]

{"sheet":"Eleve13","index":14,"n_rows":27,"n_cols":32,"rows_kept":27,"cut":false,"hidden":false,"merged":[[1,0,1,27],[3,0,6,0],[3,1,3,2],[5,1,5,2],[6,1,6,2],[10,1,10,2],[11,1,11,2],[12,1,12,2],[13,1,13,2],[16,0,20,0],[16,1,16,2],[17,1,17,2],[18,1,18,2],[19,1,19,2],[20,1,20,2],[9,0,13,0],[9,1,9,2]]}
[]
["Grille de suivi individuelle de formation"]
[null,null,null,"Niveau de l'élève","Prof","Date","Activité","Niveau de difficulté",null,"Niveau de l'élève","Prof","Date","Activité","Niveau de difficulté",null,"Niveau de l'élève","Prof","Date","Activité","Niveau de difficulté",null,"Niveau de l'élève","Prof","Date","Activité","Niveau de difficulté",null,"Niveau de l'élève","Prof","Date","Activité","Niveau de difficulté"]
["BLOC 1","Participer à la passation des commandes fournisseurs",null,null,null,{"$f":"IF(D4<>\"\",TODAY(),\"\")","v":""},null,null,null,null,null,null,null,null,null,null,null,{"$f":"IF(P4<>\"\",TODAY(),\"\")","v":""},null,null,null,null,null,{"$f":"IF(V4<>\"\",TODAY(),\"\")","v":""},null,null,null,null,null,{"$f":"IF(AB4<>\"\",TODAY(),\"\")","v":""}]
[null,"Réceptionner",null,null,null,"",null,null,null,null,null,{"$f":"IF(J5<>\"\",TODAY(),\"\")","v":""},null,null,null,null,null,"",null,null,null,null,null,"",null,null,null,null,null,""]
[null,"Stocker",null,null,null,"",null,null,null,null,null,"",null,null,null,null,null,"",null,null,null,null,null,"",null,null,null,null,null,""]
[null,"Préparer les commandes destinées aux clients",null,null,null,"",null,null,null,null,null,"",null,null,null,null,null,"",null,null,null,null,null,"",null,null,null,null,null,""]
[null,null,null,null,null,null,null,null,null,null,null,"",null,null,null,null,null,"",null,null,null,null,null,"",null,null,null,null,null,""]
[null,null,null,null,null,"",null,null,null,null,null,"",null,null,null,null,null,"",null,null,null,null,null,"",null,null,null,null,null,""]
["BLOC 2","Approvisionner, mettre en rayon et ranger selon la nature des produits",null,null,null,"",null,null,null,null,null,"",null,null,null,null,null,"",null,null,null,null,null,"",null,null,null,null,null,""]
[null,"Mettre en valeur les produits et l’espace commercial",null,null,null,"",null,null,null,null,null,"",null,null,null,null,null,"",null,null,null,null,null,"",null,null,null,null,null,""]
[null,"Participer aux opérations de conditionnement des produits",null,null,null,"",null,null,null,null,null,"",null,null,null,null,null,"",null,null,null,null,null,"",null,null,null,null,null,""]
[null,"Installer et mettre à jour la signalétique",null,null,null,"",null,null,null,null,null,"",null,null,null,null,null,"",null,null,null,null,null,"",null,null,null,null,null,""]
[null,"Lutter contre la démarque et participer aux opérations d’inventaire",null,null,null,"",null,null,null,null,null,"",null,null,null,null,null,"",null,null,null,null,null,"",null,null,null,null,null,""]
[null,null,null,null,null,"",null,null,null,null,null,"",null,null,null,null,null,"",null,null,null,null,null,"",null,null,null,null,null,""]
[null,null,null,null,null,"",null,null,null,null,null,"",null,null,null,null,null,"",null,null,null,null,null,"",null,null,null,null,null,""]
["BLOC 3","Préparer son environnement de travail",null,null,null,"",null,null,null,null,null,"",null,null,null,null,null,"",null,null,null,null,null,"",null,null,null,null,null,""]
[null,"Prendre contact avec le client",null,null,null,"",null,null,null,null,null,"",null,null,null,null,null,"",null,null,null,null,null,"",null,null,null,null,null,""]
[null,"Accompagner le parcours client dans un contexte omnicanal",null,null,null,"",null,null,null,null,null,"",null,null,null,null,null,"",null,null,null,null,null,"",null,null,null,null,null,""]
[null,"Finaliser la prise en charge du client",null,null,null,"",null,null,null,null,null,"",null,null,null,null,null,"",null,null,null,null,null,"",null,null,null,null,null,""]
[null,"Recevoir les réclamations courantes",null,null,null,"",null,null,null,null,null,"",null,null,null,null,null,"",null,null,null,null,null,"",null,null,null,null,null,""]
[]
["1°)",1,"Novice : Saisir 1 dans la cellule \"Niveau\"","2°)","La date s'incrémente seule lors de la saisie du chiffre du niveau.",null,null,null,null,"5°)","Noter le niveau de difficulté de l'activité."]
[null,2,"Débrouillé : Saisir 2 dans la cellule \"Niveau\""]
[null,3,"Averti : Saisir 3 dans la cellule \"Niveau\"","3°)","Sélectionner les initiales de l'enseignant."]
[null,4,"Expert : Saisir 4 dans la cellule \"Niveau\""]
[null,null,null,"4°)","Puis noter l'activité (PFMP ; Brassens Shop ; Darty...)"]

{"sheet":"Eleve14","index":15,"n_rows":27,"n_cols":32,"rows_kept":27,"cut":false,"hidden":false,"merged":[[1,0,1,27],[3,0,6,0],[3,1,3,2],[5,1,5,2],[6,1,6,2],[10,1,10,2],[11,1,11,2],[12,1,12,2],[13,1,13,2],[16,0,20,0],[16,1,16,2],[17,1,17,2],[18,1,18,2],[19,1,19,2],[20,1,20,2],[9,0,13,0],[9,1,9,2]]}
[]
["Grille de suivi individuelle de formation"]
[null,null,null,"Niveau de l'élève","Prof","Date","Activité","Niveau de difficulté",null,"Niveau de l'élève","Prof","Date","Activité","Niveau de difficulté",null,"Niveau de l'élève","Prof","Date","Activité","Niveau de difficulté",null,"Niveau de l'élève","Prof","Date","Activité","Niveau de difficulté",null,"Niveau de l'élève","Prof","Date","Activité","Niveau de difficulté"]
["BLOC 1","Participer à la passation des commandes fournisseurs",null,null,null,{"$f":"IF(D4<>\"\",TODAY(),\"\")","v":""},null,null,null,null,null,null,null,null,null,null,null,{"$f":"IF(P4<>\"\",TODAY(),\"\")","v":""},null,null,null,null,null,{"$f":"IF(V4<>\"\",TODAY(),\"\")","v":""},null,null,null,null,null,{"$f":"IF(AB4<>\"\",TODAY(),\"\")","v":""}]
[null,"Réceptionner",null,null,null,"",null,null,null,null,null,{"$f":"IF(J5<>\"\",TODAY(),\"\")","v":""},null,null,null,null,null,"",null,null,null,null,null,"",null,null,null,null,null,""]
[null,"Stocker",null,null,null,"",null,null,null,null,null,"",null,null,null,null,null,"",null,null,null,null,null,"",null,null,null,null,null,""]
[null,"Préparer les commandes destinées aux clients",null,null,null,"",null,null,null,null,null,"",null,null,null,null,null,"",null,null,null,null,null,"",null,null,null,null,null,""]
[null,null,null,null,null,null,null,null,null,null,null,"",null,null,null,null,null,"",null,null,null,null,null,"",null,null,null,null,null,""]
[null,null,null,null,null,"",null,null,null,null,null,"",null,null,null,null,null,"",null,null,null,null,null,"",null,null,null,null,null,""]
["BLOC 2","Approvisionner, mettre en rayon et ranger selon la nature des produits",null,null,null,"",null,null,null,null,null,"",null,null,null,null,null,"",null,null,null,null,null,"",null,null,null,null,null,""]
[null,"Mettre en valeur les produits et l’espace commercial",null,null,null,"",null,null,null,null,null,"",null,null,null,null,null,"",null,null,null,null,null,"",null,null,null,null,null,""]
[null,"Participer aux opérations de conditionnement des produits",null,null,null,"",null,null,null,null,null,"",null,null,null,null,null,"",null,null,null,null,null,"",null,null,null,null,null,""]
[null,"Installer et mettre à jour la signalétique",null,null,null,"",null,null,null,null,null,"",null,null,null,null,null,"",null,null,null,null,null,"",null,null,null,null,null,""]
[null,"Lutter contre la démarque et participer aux opérations d’inventaire",null,null,null,"",null,null,null,null,null,"",null,null,null,null,null,"",null,null,null,null,null,"",null,null,null,null,null,""]
[null,null,null,null,null,"",null,null,null,null,null,"",null,null,null,null,null,"",null,null,null,null,null,"",null,null,null,null,null,""]
[null,null,null,null,null,"",null,null,null,null,null,"",null,null,null,null,null,"",null,null,null,null,null,"",null,null,null,null,null,""]
["BLOC 3","Préparer son environnement de travail",null,null,null,"",null,null,null,null,null,"",null,null,null,null,null,"",null,null,null,null,null,"",null,null,null,null,null,""]
[null,"Prendre contact avec le client",null,null,null,"",null,null,null,null,null,"",null,null,null,null,null,"",null,null,null,null,null,"",null,null,null,null,null,""]
[null,"Accompagner le parcours client dans un contexte omnicanal",null,null,null,"",null,null,null,null,null,"",null,null,null,null,null,"",null,null,null,null,null,"",null,null,null,null,null,""]
[null,"Finaliser la prise en charge du client",null,null,null,"",null,null,null,null,null,"",null,null,null,null,null,"",null,null,null,null,null,"",null,null,null,null,null,""]
[null,"Recevoir les réclamations courantes",null,null,null,"",null,null,null,null,null,"",null,null,null,null,null,"",null,null,null,null,null,"",null,null,null,null,null,""]
[]
["1°)",1,"Novice : Saisir 1 dans la cellule \"Niveau\"","2°)","La date s'incrémente seule lors de la saisie du chiffre du niveau.",null,null,null,null,"5°)","Noter le niveau de difficulté de l'activité."]
[null,2,"Débrouillé : Saisir 2 dans la cellule \"Niveau\""]
[null,3,"Averti : Saisir 3 dans la cellule \"Niveau\"","3°)","Sélectionner les initiales de l'enseignant."]
[null,4,"Expert : Saisir 4 dans la cellule \"Niveau\""]
[null,null,null,"4°)","Puis noter l'activité (PFMP ; Brassens Shop ; Darty...)"]

{"sheet":"Eleve15","index":16,"n_rows":27,"n_cols":32,"rows_kept":27,"cut":false,"hidden":false,"merged":[[1,0,1,27],[3,0,6,0],[3,1,3,2],[5,1,5,2],[6,1,6,2],[10,1,10,2],[11,1,11,2],[12,1,12,2],[13,1,13,2],[16,0,20,0],[16,1,16,2],[17,1,17,2],[18,1,18,2],[19,1,19,2],[20,1,20,2],[9,0,13,0],[9,1,9,2]]}
[]
["Grille de suivi individuelle de formation"]
[null,null,null,"Niveau de l'élève","Prof","Date","Activité","Niveau de difficulté",null,"Niveau de l'élève","Prof","Date","Activité","Niveau de difficulté",null,"Niveau de l'élève","Prof","Date","Activité","Niveau de difficulté",null,"Niveau de l'élève","Prof","Date","Activité","Niveau de difficulté",null,"Niveau de l'élève","Prof","Date","Activité","Niveau de difficulté"]
["BLOC 1","Participer à la passation des commandes fournisseurs",null,null,null,{"$f":"IF(D4<>\"\",TODAY(),\"\")","v":""},null,null,null,null,null,null,null,null,null,null,null,{"$f":"IF(P4<>\"\",TODAY(),\"\")","v":""},null,null,null,null,null,{"$f":"IF(V4<>\"\",TODAY(),\"\")","v":""},null,null,null,null,null,{"$f":"IF(AB4<>\"\",TODAY(),\"\")","v":""}]
[null,"Réceptionner",null,null,null,"",null,null,null,null,null,{"$f":"IF(J5<>\"\",TODAY(),\"\")","v":""},null,null,null,null,null,"",null,null,null,null,null,"",null,null,null,null,null,""]
[null,"Stocker",null,null,null,"",null,null,null,null,null,"",null,null,null,null,null,"",null,null,null,null,null,"",null,null,null,null,null,""]
[null,"Préparer les commandes destinées aux clients",null,null,null,"",null,null,null,null,null,"",null,null,null,null,null,"",null,null,null,null,null,"",null,null,null,null,null,""]
[null,null,null,null,null,null,null,null,null,null,null,"",null,null,null,null,null,"",null,null,null,null,null,"",null,null,null,null,null,""]
[null,null,null,null,null,"",null,null,null,null,null,"",null,null,null,null,null,"",null,null,null,null,null,"",null,null,null,null,null,""]
["BLOC 2","Approvisionner, mettre en rayon et ranger selon la nature des produits",null,null,null,"",null,null,null,null,null,"",null,null,null,null,null,"",null,null,null,null,null,"",null,null,null,null,null,""]
[null,"Mettre en valeur les produits et l’espace commercial",null,null,null,"",null,null,null,null,null,"",null,null,null,null,null,"",null,null,null,null,null,"",null,null,null,null,null,""]
[null,"Participer aux opérations de conditionnement des produits",null,null,null,"",null,null,null,null,null,"",null,null,null,null,null,"",null,null,null,null,null,"",null,null,null,null,null,""]
[null,"Installer et mettre à jour la signalétique",null,null,null,"",null,null,null,null,null,"",null,null,null,null,null,"",null,null,null,null,null,"",null,null,null,null,null,""]
[null,"Lutter contre la démarque et participer aux opérations d’inventaire",null,null,null,"",null,null,null,null,null,"",null,null,null,null,null,"",null,null,null,null,null,"",null,null,null,null,null,""]
[null,null,null,null,null,"",null,null,null,null,null,"",null,null,null,null,null,"",null,null,null,null,null,"",null,null,null,null,null,""]
[null,null,null,null,null,"",null,null,null,null,null,"",null,null,null,null,null,"",null,null,null,null,null,"",null,null,null,null,null,""]
["BLOC 3","Préparer son environnement de travail",null,null,null,"",null,null,null,null,null,"",null,null,null,null,null,"",null,null,null,null,null,"",null,null,null,null,null,""]
[null,"Prendre contact avec le client",null,null,null,"",null,null,null,null,null,"",null,null,null,null,null,"",null,null,null,null,null,"",null,null,null,null,null,""]
[null,"Accompagner le parcours client dans un contexte omnicanal",null,null,null,"",null,null,null,null,null,"",null,null,null,null,null,"",null,null,null,null,null,"",null,null,null,null,null,""]
[null,"Finaliser la prise en charge du client",null,null,null,"",null,null,null,null,null,"",null,null,null,null,null,"",null,null,null,null,null,"",null,null,null,null,null,""]
[null,"Recevoir les réclamations courantes",null,null,null,"",null,null,null,null,null,"",null,null,null,null,null,"",null,null,null,null,null,"",null,null,null,null,null,""]
[]
["1°)",1,"Novice : Saisir 1 dans la cellule \"Niveau\"","2°)","La date s'incrémente seule lors de la saisie du chiffre du niveau.",null,null,null,null,"5°)","Noter le niveau de difficulté de l'activité."]
[null,2,"Débrouillé : Saisir 2 dans la cellule \"Niveau\""]
[null,3,"Averti : Saisir 3 dans la cellule \"Niveau\"","3°)","Sélectionner les initiales de l'enseignant."]
[null,4,"Expert : Saisir 4 dans la cellule \"Niveau\""]
[null,null,null,"4°)","Puis noter l'activité (PFMP ; Brassens Shop ; Darty...)"]

{"sheet":"Eleve16","index":17,"n_rows":27,"n_cols":32,"rows_kept":27,"cut":false,"hidden":false,"merged":[[1,0,1,27],[3,0,6,0],[3,1,3,2],[5,1,5,2],[6,1,6,2],[10,1,10,2],[11,1,11,2],[12,1,12,2],[13,1,13,2],[16,0,20,0],[16,1,16,2],[17,1,17,2],[18,1,18,2],[19,1,19,2],[20,1,20,2],[9,0,13,0],[9,1,9,2]]}
[]
["Grille de suivi individuelle de formation"]
[null,null,null,"Niveau de l'élève","Prof","Date","Activité","Niveau de difficulté",null,"Niveau de l'élève","Prof","Date","Activité","Niveau de difficulté",null,"Niveau de l'élève","Prof","Date","Activité","Niveau de difficulté",null,"Niveau de l'élève","Prof","Date","Activité","Niveau de difficulté",null,"Niveau de l'élève","Prof","Date","Activité","Niveau de difficulté"]
["BLOC 1","Participer à la passation des commandes fournisseurs",null,null,null,{"$f":"IF(D4<>\"\",TODAY(),\"\")","v":""},null,null,null,null,null,null,null,null,null,null,null,{"$f":"IF(P4<>\"\",TODAY(),\"\")","v":""},null,null,null,null,null,{"$f":"IF(V4<>\"\",TODAY(),\"\")","v":""},null,null,null,null,null,{"$f":"IF(AB4<>\"\",TODAY(),\"\")","v":""}]
[null,"Réceptionner",null,null,null,"",null,null,null,null,null,{"$f":"IF(J5<>\"\",TODAY(),\"\")","v":""},null,null,null,null,null,"",null,null,null,null,null,"",null,null,null,null,null,""]
[null,"Stocker",null,null,null,"",null,null,null,null,null,"",null,null,null,null,null,"",null,null,null,null,null,"",null,null,null,null,null,""]
[null,"Préparer les commandes destinées aux clients",null,null,null,"",null,null,null,null,null,"",null,null,null,null,null,"",null,null,null,null,null,"",null,null,null,null,null,""]
[null,null,null,null,null,null,null,null,null,null,null,"",null,null,null,null,null,"",null,null,null,null,null,"",null,null,null,null,null,""]
[null,null,null,null,null,"",null,null,null,null,null,"",null,null,null,null,null,"",null,null,null,null,null,"",null,null,null,null,null,""]
["BLOC 2","Approvisionner, mettre en rayon et ranger selon la nature des produits",null,null,null,"",null,null,null,null,null,"",null,null,null,null,null,"",null,null,null,null,null,"",null,null,null,null,null,""]
[null,"Mettre en valeur les produits et l’espace commercial",null,null,null,"",null,null,null,null,null,"",null,null,null,null,null,"",null,null,null,null,null,"",null,null,null,null,null,""]
[null,"Participer aux opérations de conditionnement des produits",null,null,null,"",null,null,null,null,null,"",null,null,null,null,null,"",null,null,null,null,null,"",null,null,null,null,null,""]
[null,"Installer et mettre à jour la signalétique",null,null,null,"",null,null,null,null,null,"",null,null,null,null,null,"",null,null,null,null,null,"",null,null,null,null,null,""]
[null,"Lutter contre la démarque et participer aux opérations d’inventaire",null,null,null,"",null,null,null,null,null,"",null,null,null,null,null,"",null,null,null,null,null,"",null,null,null,null,null,""]
[null,null,null,null,null,"",null,null,null,null,null,"",null,null,null,null,null,"",null,null,null,null,null,"",null,null,null,null,null,""]
[null,null,null,null,null,"",null,null,null,null,null,"",null,null,null,null,null,"",null,null,null,null,null,"",null,null,null,null,null,""]
["BLOC 3","Préparer son environnement de travail",null,null,null,"",null,null,null,null,null,"",null,null,null,null,null,"",null,null,null,null,null,"",null,null,null,null,null,""]
[null,"Prendre contact avec le client",null,null,null,"",null,null,null,null,null,"",null,null,null,null,null,"",null,null,null,null,null,"",null,null,null,null,null,""]
[null,"Accompagner le parcours client dans un contexte omnicanal",null,null,null,"",null,null,null,null,null,"",null,null,null,null,null,"",null,null,null,null,null,"",null,null,null,null,null,""]
[null,"Finaliser la prise en charge du client",null,null,null,"",null,null,null,null,null,"",null,null,null,null,null,"",null,null,null,null,null,"",null,null,null,null,null,""]
[null,"Recevoir les réclamations courantes",null,null,null,"",null,null,null,null,null,"",null,null,null,null,null,"",null,null,null,null,null,"",null,null,null,null,null,""]
[]
["1°)",1,"Novice : Saisir 1 dans la cellule \"Niveau\"","2°)","La date s'incrémente seule lors de la saisie du chiffre du niveau.",null,null,null,null,"5°)","Noter le niveau de difficulté de l'activité."]
[null,2,"Débrouillé : Saisir 2 dans la cellule \"Niveau\""]
[null,3,"Averti : Saisir 3 dans la cellule \"Niveau\"","3°)","Sélectionner les initiales de l'enseignant."]
[null,4,"Expert : Saisir 4 dans la cellule \"Niveau\""]
[null,null,null,"4°)","Puis noter l'activité (PFMP ; Brassens Shop ; Darty...)"]

{"sheet":"Eleve17","index":18,"n_rows":27,"n_cols":32,"rows_kept":27,"cut":false,"hidden":false,"merged":[[1,0,1,27],[3,0,6,0],[3,1,3,2],[5,1,5,2],[6,1,6,2],[10,1,10,2],[11,1,11,2],[12,1,12,2],[13,1,13,2],[16,0,20,0],[16,1,16,2],[17,1,17,2],[18,1,18,2],[19,1,19,2],[20,1,20,2],[9,0,13,0],[9,1,9,2]]}
[]
["Grille de suivi individuelle de formation"]
[null,null,null,"Niveau de l'élève","Prof","Date","Activité","Niveau de difficulté",null,"Niveau de l'élève","Prof","Date","Activité","Niveau de difficulté",null,"Niveau de l'élève","Prof","Date","Activité","Niveau de difficulté",null,"Niveau de l'élève","Prof","Date","Activité","Niveau de difficulté",null,"Niveau de l'élève","Prof","Date","Activité","Niveau de difficulté"]
["BLOC 1","Participer à la passation des commandes fournisseurs",null,null,null,{"$f":"IF(D4<>\"\",TODAY(),\"\")","v":""},null,null,null,null,null,null,null,null,null,null,null,{"$f":"IF(P4<>\"\",TODAY(),\"\")","v":""},null,null,null,null,null,{"$f":"IF(V4<>\"\",TODAY(),\"\")","v":""},null,null,null,null,null,{"$f":"IF(AB4<>\"\",TODAY(),\"\")","v":""}]
[null,"Réceptionner",null,null,null,"",null,null,null,null,null,{"$f":"IF(J5<>\"\",TODAY(),\"\")","v":""},null,null,null,null,null,"",null,null,null,null,null,"",null,null,null,null,null,""]
[null,"Stocker",null,null,null,"",null,null,null,null,null,"",null,null,null,null,null,"",null,null,null,null,null,"",null,null,null,null,null,""]
[null,"Préparer les commandes destinées aux clients",null,null,null,"",null,null,null,null,null,"",null,null,null,null,null,"",null,null,null,null,null,"",null,null,null,null,null,""]
[null,null,null,null,null,null,null,null,null,null,null,"",null,null,null,null,null,"",null,null,null,null,null,"",null,null,null,null,null,""]
[null,null,null,null,null,"",null,null,null,null,null,"",null,null,null,null,null,"",null,null,null,null,null,"",null,null,null,null,null,""]
["BLOC 2","Approvisionner, mettre en rayon et ranger selon la nature des produits",null,null,null,"",null,null,null,null,null,"",null,null,null,null,null,"",null,null,null,null,null,"",null,null,null,null,null,""]
[null,"Mettre en valeur les produits et l’espace commercial",null,null,null,"",null,null,null,null,null,"",null,null,null,null,null,"",null,null,null,null,null,"",null,null,null,null,null,""]
[null,"Participer aux opérations de conditionnement des produits",null,null,null,"",null,null,null,null,null,"",null,null,null,null,null,"",null,null,null,null,null,"",null,null,null,null,null,""]
[null,"Installer et mettre à jour la signalétique",null,null,null,"",null,null,null,null,null,"",null,null,null,null,null,"",null,null,null,null,null,"",null,null,null,null,null,""]
[null,"Lutter contre la démarque et participer aux opérations d’inventaire",null,null,null,"",null,null,null,null,null,"",null,null,null,null,null,"",null,null,null,null,null,"",null,null,null,null,null,""]
[null,null,null,null,null,"",null,null,null,null,null,"",null,null,null,null,null,"",null,null,null,null,null,"",null,null,null,null,null,""]
[null,null,null,null,null,"",null,null,null,null,null,"",null,null,null,null,null,"",null,null,null,null,null,"",null,null,null,null,null,""]
["BLOC 3","Préparer son environnement de travail",null,null,null,"",null,null,null,null,null,"",null,null,null,null,null,"",null,null,null,null,null,"",null,null,null,null,null,""]
[null,"Prendre contact avec le client",null,null,null,"",null,null,null,null,null,"",null,null,null,null,null,"",null,null,null,null,null,"",null,null,null,null,null,""]
[null,"Accompagner le parcours client dans un contexte omnicanal",null,null,null,"",null,null,null,null,null,"",null,null,null,null,null,"",null,null,null,null,null,"",null,null,null,null,null,""]
[null,"Finaliser la prise en charge du client",null,null,null,"",null,null,null,null,null,"",null,null,null,null,null,"",null,null,null,null,null,"",null,null,null,null,null,""]
[null,"Recevoir les réclamations courantes",null,null,null,"",null,null,null,null,null,"",null,null,null,null,null,"",null,null,null,null,null,"",null,null,null,null,null,""]
[]
["1°)",1,"Novice : Saisir 1 dans la cellule \"Niveau\"","2°)","La date s'incrémente seule lors de la saisie du chiffre du niveau.",null,null,null,null,"5°)","Noter le niveau de difficulté de l'activité."]
[null,2,"Débrouillé : Saisir 2 dans la cellule \"Niveau\""]
[null,3,"Averti : Saisir 3 dans la cellule \"Niveau\"","3°)","Sélectionner les initiales de l'enseignant."]
[null,4,"Expert : Saisir 4 dans la cellule \"Niveau\""]
[null,null,null,"4°)","Puis noter l'activité (PFMP ; Brassens Shop ; Darty...)"]

{"sheet":"Eleve18","index":19,"n_rows":27,"n_cols":32,"rows_kept":27,"cut":false,"hidden":false,"merged":[[1,0,1,27],[3,0,6,0],[3,1,3,2],[5,1,5,2],[6,1,6,2],[10,1,10,2],[11,1,11,2],[12,1,12,2],[13,1,13,2],[16,0,20,0],[16,1,16,2],[17,1,17,2],[18,1,18,2],[19,1,19,2],[20,1,20,2],[9,0,13,0],[9,1,9,2]]}
[]
["Grille de suivi individuelle de formation"]
[null,null,null,"Niveau de l'élève","Prof","Date","Activité","Niveau de difficulté",null,"Niveau de l'élève","Prof","Date","Activité","Niveau de difficulté",null,"Niveau de l'élève","Prof","Date","Activité","Niveau de difficulté",null,"Niveau de l'élève","Prof","Date","Activité","Niveau de difficulté",null,"Niveau de l'élève","Prof","Date","Activité","Niveau de difficulté"]
["BLOC 1","Participer à la passation des commandes fournisseurs",null,null,null,{"$f":"IF(D4<>\"\",TODAY(),\"\")","v":""},null,null,null,null,null,null,null,null,null,null,null,{"$f":"IF(P4<>\"\",TODAY(),\"\")","v":""},null,null,null,null,null,{"$f":"IF(V4<>\"\",TODAY(),\"\")","v":""},null,null,null,null,null,{"$f":"IF(AB4<>\"\",TODAY(),\"\")","v":""}]
[null,"Réceptionner",null,null,null,"",null,null,null,null,null,{"$f":"IF(J5<>\"\",TODAY(),\"\")","v":""},null,null,null,null,null,"",null,null,null,null,null,"",null,null,null,null,null,""]
[null,"Stocker",null,null,null,"",null,null,null,null,null,"",null,null,null,null,null,"",null,null,null,null,null,"",null,null,null,null,null,""]
[null,"Préparer les commandes destinées aux clients",null,null,null,"",null,null,null,null,null,"",null,null,null,null,null,"",null,null,null,null,null,"",null,null,null,null,null,""]
[null,null,null,null,null,null,null,null,null,null,null,"",null,null,null,null,null,"",null,null,null,null,null,"",null,null,null,null,null,""]
[null,null,null,null,null,"",null,null,null,null,null,"",null,null,null,null,null,"",null,null,null,null,null,"",null,null,null,null,null,""]
["BLOC 2","Approvisionner, mettre en rayon et ranger selon la nature des produits",null,null,null,"",null,null,null,null,null,"",null,null,null,null,null,"",null,null,null,null,null,"",null,null,null,null,null,""]
[null,"Mettre en valeur les produits et l’espace commercial",null,null,null,"",null,null,null,null,null,"",null,null,null,null,null,"",null,null,null,null,null,"",null,null,null,null,null,""]
[null,"Participer aux opérations de conditionnement des produits",null,null,null,"",null,null,null,null,null,"",null,null,null,null,null,"",null,null,null,null,null,"",null,null,null,null,null,""]
[null,"Installer et mettre à jour la signalétique",null,null,null,"",null,null,null,null,null,"",null,null,null,null,null,"",null,null,null,null,null,"",null,null,null,null,null,""]
[null,"Lutter contre la démarque et participer aux opérations d’inventaire",null,null,null,"",null,null,null,null,null,"",null,null,null,null,null,"",null,null,null,null,null,"",null,null,null,null,null,""]
[null,null,null,null,null,"",null,null,null,null,null,"",null,null,null,null,null,"",null,null,null,null,null,"",null,null,null,null,null,""]
[null,null,null,null,null,"",null,null,null,null,null,"",null,null,null,null,null,"",null,null,null,null,null,"",null,null,null,null,null,""]
["BLOC 3","Préparer son environnement de travail",null,null,null,"",null,null,null,null,null,"",null,null,null,null,null,"",null,null,null,null,null,"",null,null,null,null,null,""]
[null,"Prendre contact avec le client",null,null,null,"",null,null,null,null,null,"",null,null,null,null,null,"",null,null,null,null,null,"",null,null,null,null,null,""]
[null,"Accompagner le parcours client dans un contexte omnicanal",null,null,null,"",null,null,null,null,null,"",null,null,null,null,null,"",null,null,null,null,null,"",null,null,null,null,null,""]
[null,"Finaliser la prise en charge du client",null,null,null,"",null,null,null,null,null,"",null,null,null,null,null,"",null,null,null,null,null,"",null,null,null,null,null,""]
[null,"Recevoir les réclamations courantes",null,null,null,"",null,null,null,null,null,"",null,null,null,null,null,"",null,null,null,null,null,"",null,null,null,null,null,""]
[]
["1°)",1,"Novice : Saisir 1 dans la cellule \"Niveau\"","2°)","La date s'incrémente seule lors de la saisie du chiffre du niveau.",null,null,null,null,"5°)","Noter le niveau de difficulté de l'activité."]
[null,2,"Débrouillé : Saisir 2 dans la cellule \"Niveau\""]
[null,3,"Averti : Saisir 3 dans la cellule \"Niveau\"","3°)","Sélectionner les initiales de l'enseignant."]
[null,4,"Expert : Saisir 4 dans la cellule \"Niveau\""]
[null,null,null,"4°)","Puis noter l'activité (PFMP ; Brassens Shop ; Darty...)"]

{"sheet":"Eleve19","index":20,"n_rows":27,"n_cols":32,"rows_kept":27,"cut":false,"hidden":false,"merged":[[1,0,1,27],[3,0,6,0],[3,1,3,2],[5,1,5,2],[6,1,6,2],[10,1,10,2],[11,1,11,2],[12,1,12,2],[13,1,13,2],[16,0,20,0],[16,1,16,2],[17,1,17,2],[18,1,18,2],[19,1,19,2],[20,1,20,2],[9,0,13,0],[9,1,9,2]]}
[]
["Grille de suivi individuelle de formation"]
[null,null,null,"Niveau de l'élève","Prof","Date","Activité","Niveau de difficulté",null,"Niveau de l'élève","Prof","Date","Activité","Niveau de difficulté",null,"Niveau de l'élève","Prof","Date","Activité","Niveau de difficulté",null,"Niveau de l'élève","Prof","Date","Activité","Niveau de difficulté",null,"Niveau de l'élève","Prof","Date","Activité","Niveau de difficulté"]
["BLOC 1","Participer à la passation des commandes fournisseurs",null,null,null,{"$f":"IF(D4<>\"\",TODAY(),\"\")","v":""},null,null,null,null,null,null,null,null,null,null,null,{"$f":"IF(P4<>\"\",TODAY(),\"\")","v":""},null,null,null,null,null,{"$f":"IF(V4<>\"\",TODAY(),\"\")","v":""},null,null,null,null,null,{"$f":"IF(AB4<>\"\",TODAY(),\"\")","v":""}]
[null,"Réceptionner",null,null,null,"",null,null,null,null,null,{"$f":"IF(J5<>\"\",TODAY(),\"\")","v":""},null,null,null,null,null,"",null,null,null,null,null,"",null,null,null,null,null,""]
[null,"Stocker",null,null,null,"",null,null,null,null,null,"",null,null,null,null,null,"",null,null,null,null,null,"",null,null,null,null,null,""]
[null,"Préparer les commandes destinées aux clients",null,null,null,"",null,null,null,null,null,"",null,null,null,null,null,"",null,null,null,null,null,"",null,null,null,null,null,""]
[null,null,null,null,null,null,null,null,null,null,null,"",null,null,null,null,null,"",null,null,null,null,null,"",null,null,null,null,null,""]
[null,null,null,null,null,"",null,null,null,null,null,"",null,null,null,null,null,"",null,null,null,null,null,"",null,null,null,null,null,""]
["BLOC 2","Approvisionner, mettre en rayon et ranger selon la nature des produits",null,null,null,"",null,null,null,null,null,"",null,null,null,null,null,"",null,null,null,null,null,"",null,null,null,null,null,""]
[null,"Mettre en valeur les produits et l’espace commercial",null,null,null,"",null,null,null,null,null,"",null,null,null,null,null,"",null,null,null,null,null,"",null,null,null,null,null,""]
[null,"Participer aux opérations de conditionnement des produits",null,null,null,"",null,null,null,null,null,"",null,null,null,null,null,"",null,null,null,null,null,"",null,null,null,null,null,""]
[null,"Installer et mettre à jour la signalétique",null,null,null,"",null,null,null,null,null,"",null,null,null,null,null,"",null,null,null,null,null,"",null,null,null,null,null,""]
[null,"Lutter contre la démarque et participer aux opérations d’inventaire",null,null,null,"",null,null,null,null,null,"",null,null,null,null,null,"",null,null,null,null,null,"",null,null,null,null,null,""]
[null,null,null,null,null,"",null,null,null,null,null,"",null,null,null,null,null,"",null,null,null,null,null,"",null,null,null,null,null,""]
[null,null,null,null,null,"",null,null,null,null,null,"",null,null,null,null,null,"",null,null,null,null,null,"",null,null,null,null,null,""]
["BLOC 3","Préparer son environnement de travail",null,null,null,"",null,null,null,null,null,"",null,null,null,null,null,"",null,null,null,null,null,"",null,null,null,null,null,""]
[null,"Prendre contact avec le client",null,null,null,"",null,null,null,null,null,"",null,null,null,null,null,"",null,null,null,null,null,"",null,null,null,null,null,""]
[null,"Accompagner le parcours client dans un contexte omnicanal",null,null,null,"",null,null,null,null,null,"",null,null,null,null,null,"",null,null,null,null,null,"",null,null,null,null,null,""]
[null,"Finaliser la prise en charge du client",null,null,null,"",null,null,null,null,null,"",null,null,null,null,null,"",null,null,null,null,null,"",null,null,null,null,null,""]
[null,"Recevoir les réclamations courantes",null,null,null,"",null,null,null,null,null,"",null,null,null,null,null,"",null,null,null,null,null,"",null,null,null,null,null,""]
[]
["1°)",1,"Novice : Saisir 1 dans la cellule \"Niveau\"","2°)","La date s'incrémente seule lors de la saisie du chiffre du niveau.",null,null,null,null,"5°)","Noter le niveau de difficulté de l'activité."]
[null,2,"Débrouillé : Saisir 2 dans la cellule \"Niveau\""]
[null,3,"Averti : Saisir 3 dans la cellule \"Niveau\"","3°)","Sélectionner les initiales de l'enseignant."]
[null,4,"Expert : Saisir 4 dans la cellule \"Niveau\""]
[null,null,null,"4°)","Puis noter l'activité (PFMP ; Brassens Shop ; Darty...)"]

{"sheet":"Eleve20","index":21,"n_rows":27,"n_cols":32,"rows_kept":27,"cut":false,"hidden":false,"merged":[[1,0,1,27],[3,0,6,0],[3,1,3,2],[5,1,5,2],[6,1,6,2],[10,1,10,2],[11,1,11,2],[12,1,12,2],[13,1,13,2],[16,0,20,0],[16,1,16,2],[17,1,17,2],[18,1,18,2],[19,1,19,2],[20,1,20,2],[9,0,13,0],[9,1,9,2]]}
[]
["Grille de suivi individuelle de formation"]
[null,null,null,"Niveau de l'élève","Prof","Date","Activité","Niveau de difficulté",null,"Niveau de l'élève","Prof","Date","Activité","Niveau de difficulté",null,"Niveau de l'élève","Prof","Date","Activité","Niveau de difficulté",null,"Niveau de l'élève","Prof","Date","Activité","Niveau de difficulté",null,"Niveau de l'élève","Prof","Date","Activité","Niveau de difficulté"]
["BLOC 1","Participer à la passation des commandes fournisseurs",null,null,null,{"$f":"IF(D4<>\"\",TODAY(),\"\")","v":""},null,null,null,null,null,null,null,null,null,null,null,{"$f":"IF(P4<>\"\",TODAY(),\"\")","v":""},null,null,null,null,null,{"$f":"IF(V4<>\"\",TODAY(),\"\")","v":""},null,null,null,null,null,{"$f":"IF(AB4<>\"\",TODAY(),\"\")","v":""}]
[null,"Réceptionner",null,null,null,"",null,null,null,null,null,{"$f":"IF(J5<>\"\",TODAY(),\"\")","v":""},null,null,null,null,null,"",null,null,null,null,null,"",null,null,null,null,null,""]
[null,"Stocker",null,null,null,"",null,null,null,null,null,"",null,null,null,null,null,"",null,null,null,null,null,"",null,null,null,null,null,""]
[null,"Préparer les commandes destinées aux clients",null,null,null,"",null,null,null,null,null,"",null,null,null,null,null,"",null,null,null,null,null,"",null,null,null,null,null,""]
[null,null,null,null,null,null,null,null,null,null,null,"",null,null,null,null,null,"",null,null,null,null,null,"",null,null,null,null,null,""]
[null,null,null,null,null,"",null,null,null,null,null,"",null,null,null,null,null,"",null,null,null,null,null,"",null,null,null,null,null,""]
["BLOC 2","Approvisionner, mettre en rayon et ranger selon la nature des produits",null,null,null,"",null,null,null,null,null,"",null,null,null,null,null,"",null,null,null,null,null,"",null,null,null,null,null,""]
[null,"Mettre en valeur les produits et l’espace commercial",null,null,null,"",null,null,null,null,null,"",null,null,null,null,null,"",null,null,null,null,null,"",null,null,null,null,null,""]
[null,"Participer aux opérations de conditionnement des produits",null,null,null,"",null,null,null,null,null,"",null,null,null,null,null,"",null,null,null,null,null,"",null,null,null,null,null,""]
[null,"Installer et mettre à jour la signalétique",null,null,null,"",null,null,null,null,null,"",null,null,null,null,null,"",null,null,null,null,null,"",null,null,null,null,null,""]
[null,"Lutter contre la démarque et participer aux opérations d’inventaire",null,null,null,"",null,null,null,null,null,"",null,null,null,null,null,"",null,null,null,null,null,"",null,null,null,null,null,""]
[null,null,null,null,null,"",null,null,null,null,null,"",null,null,null,null,null,"",null,null,null,null,null,"",null,null,null,null,null,""]
[null,null,null,null,null,"",null,null,null,null,null,"",null,null,null,null,null,"",null,null,null,null,null,"",null,null,null,null,null,""]
["BLOC 3","Préparer son environnement de travail",null,null,null,"",null,null,null,null,null,"",null,null,null,null,null,"",null,null,null,null,null,"",null,null,null,null,null,""]
[null,"Prendre contact avec le client",null,null,null,"",null,null,null,null,null,"",null,null,null,null,null,"",null,null,null,null,null,"",null,null,null,null,null,""]
[null,"Accompagner le parcours client dans un contexte omnicanal",null,null,null,"",null,null,null,null,null,"",null,null,null,null,null,"",null,null,null,null,null,"",null,null,null,null,null,""]
[null,"Finaliser la prise en charge du client",null,null,null,"",null,null,null,null,null,"",null,null,null,null,null,"",null,null,null,null,null,"",null,null,null,null,null,""]
[null,"Recevoir les réclamations courantes",null,null,null,"",null,null,null,null,null,"",null,null,null,null,null,"",null,null,null,null,null,"",null,null,null,null,null,""]
[]
["1°)",1,"Novice : Saisir 1 dans la cellule \"Niveau\"","2°)","La date s'incrémente seule lors de la saisie du chiffre du niveau.",null,null,null,null,"5°)","Noter le niveau de difficulté de l'activité."]
[null,2,"Débrouillé : Saisir 2 dans la cellule \"Niveau\""]
[null,3,"Averti : Saisir 3 dans la cellule \"Niveau\"","3°)","Sélectionner les initiales de l'enseignant."]
[null,4,"Expert : Saisir 4 dans la cellule \"Niveau\""]
[null,null,null,"4°)","Puis noter l'activité (PFMP ; Brassens Shop ; Darty...)"]

{"sheet":"Eleve21","index":22,"n_rows":27,"n_cols":32,"rows_kept":27,"cut":false,"hidden":false,"merged":[[1,0,1,27],[3,0,6,0],[3,1,3,2],[5,1,5,2],[6,1,6,2],[10,1,10,2],[11,1,11,2],[12,1,12,2],[13,1,13,2],[16,0,20,0],[16,1,16,2],[17,1,17,2],[18,1,18,2],[19,1,19,2],[20,1,20,2],[9,0,13,0],[9,1,9,2]]}
[]
["Grille de suivi individuelle de formation"]
[null,null,null,"Niveau de l'élève","Prof","Date","Activité","Niveau de difficulté",null,"Niveau de l'élève","Prof","Date","Activité","Niveau de difficulté",null,"Niveau de l'élève","Prof","Date","Activité","Niveau de difficulté",null,"Niveau de l'élève","Prof","Date","Activité","Niveau de difficulté",null,"Niveau de l'élève","Prof","Date","Activité","Niveau de difficulté"]
["BLOC 1","Participer à la passation des commandes fournisseurs",null,null,null,{"$f":"IF(D4<>\"\",TODAY(),\"\")","v":""},null,null,null,null,null,null,null,null,null,null,null,{"$f":"IF(P4<>\"\",TODAY(),\"\")","v":""},null,null,null,null,null,{"$f":"IF(V4<>\"\",TODAY(),\"\")","v":""},null,null,null,null,null,{"$f":"IF(AB4<>\"\",TODAY(),\"\")","v":""}]
[null,"Réceptionner",null,null,null,"",null,null,null,null,null,{"$f":"IF(J5<>\"\",TODAY(),\"\")","v":""},null,null,null,null,null,"",null,null,null,null,null,"",null,null,null,null,null,""]
[null,"Stocker",null,null,null,"",null,null,null,null,null,"",null,null,null,null,null,"",null,null,null,null,null,"",null,null,null,null,null,""]
[null,"Préparer les commandes destinées aux clients",null,null,null,"",null,null,null,null,null,"",null,null,null,null,null,"",null,null,null,null,null,"",null,null,null,null,null,""]
[null,null,null,null,null,null,null,null,null,null,null,"",null,null,null,null,null,"",null,null,null,null,null,"",null,null,null,null,null,""]
[null,null,null,null,null,"",null,null,null,null,null,"",null,null,null,null,null,"",null,null,null,null,null,"",null,null,null,null,null,""]
["BLOC 2","Approvisionner, mettre en rayon et ranger selon la nature des produits",null,null,null,"",null,null,null,null,null,"",null,null,null,null,null,"",null,null,null,null,null,"",null,null,null,null,null,""]
[null,"Mettre en valeur les produits et l’espace commercial",null,null,null,"",null,null,null,null,null,"",null,null,null,null,null,"",null,null,null,null,null,"",null,null,null,null,null,""]
[null,"Participer aux opérations de conditionnement des produits",null,null,null,"",null,null,null,null,null,"",null,null,null,null,null,"",null,null,null,null,null,"",null,null,null,null,null,""]
[null,"Installer et mettre à jour la signalétique",null,null,null,"",null,null,null,null,null,"",null,null,null,null,null,"",null,null,null,null,null,"",null,null,null,null,null,""]
[null,"Lutter contre la démarque et participer aux opérations d’inventaire",null,null,null,"",null,null,null,null,null,"",null,null,null,null,null,"",null,null,null,null,null,"",null,null,null,null,null,""]
[null,null,null,null,null,"",null,null,null,null,null,"",null,null,null,null,null,"",null,null,null,null,null,"",null,null,null,null,null,""]
[null,null,null,null,null,"",null,null,null,null,null,"",null,null,null,null,null,"",null,null,null,null,null,"",null,null,null,null,null,""]
["BLOC 3","Préparer son environnement de travail",null,null,null,"",null,null,null,null,null,"",null,null,null,null,null,"",null,null,null,null,null,"",null,null,null,null,null,""]
[null,"Prendre contact avec le client",null,null,null,"",null,null,null,null,null,"",null,null,null,null,null,"",null,null,null,null,null,"",null,null,null,null,null,""]
[null,"Accompagner le parcours client dans un contexte omnicanal",null,null,null,"",null,null,null,null,null,"",null,null,null,null,null,"",null,null,null,null,null,"",null,null,null,null,null,""]
[null,"Finaliser la prise en charge du client",null,null,null,"",null,null,null,null,null,"",null,null,null,null,null,"",null,null,null,null,null,"",null,null,null,null,null,""]
[null,"Recevoir les réclamations courantes",null,null,null,"",null,null,null,null,null,"",null,null,null,null,null,"",null,null,null,null,null,"",null,null,null,null,null,""]
[]
["1°)",1,"Novice : Saisir 1 dans la cellule \"Niveau\"","2°)","La date s'incrémente seule lors de la saisie du chiffre du niveau.",null,null,null,null,"5°)","Noter le niveau de difficulté de l'activité."]
[null,2,"Débrouillé : Saisir 2 dans la cellule \"Niveau\""]
[null,3,"Averti : Saisir 3 dans la cellule \"Niveau\"","3°)","Sélectionner les initiales de l'enseignant."]
[null,4,"Expert : Saisir 4 dans la cellule \"Niveau\""]
[null,null,null,"4°)","Puis noter l'activité (PFMP ; Brassens Shop ; Darty...)"]

{"sheet":"Eleve22","index":23,"n_rows":27,"n_cols":32,"rows_kept":27,"cut":false,"hidden":false,"merged":[[1,0,1,27],[3,0,6,0],[3,1,3,2],[5,1,5,2],[6,1,6,2],[10,1,10,2],[11,1,11,2],[12,1,12,2],[13,1,13,2],[16,0,20,0],[16,1,16,2],[17,1,17,2],[18,1,18,2],[19,1,19,2],[20,1,20,2],[9,0,13,0],[9,1,9,2]]}
[]
["Grille de suivi individuelle de formation"]
[null,null,null,"Niveau de l'élève","Prof","Date","Activité","Niveau de difficulté",null,"Niveau de l'élève","Prof","Date","Activité","Niveau de difficulté",null,"Niveau de l'élève","Prof","Date","Activité","Niveau de difficulté",null,"Niveau de l'élève","Prof","Date","Activité","Niveau de difficulté",null,"Niveau de l'élève","Prof","Date","Activité","Niveau de difficulté"]
["BLOC 1","Participer à la passation des commandes fournisseurs",null,null,null,{"$f":"IF(D4<>\"\",TODAY(),\"\")","v":""},null,null,null,null,null,null,null,null,null,null,null,{"$f":"IF(P4<>\"\",TODAY(),\"\")","v":""},null,null,null,null,null,{"$f":"IF(V4<>\"\",TODAY(),\"\")","v":""},null,null,null,null,null,{"$f":"IF(AB4<>\"\",TODAY(),\"\")","v":""}]
[null,"Réceptionner",null,null,null,"",null,null,null,null,null,{"$f":"IF(J5<>\"\",TODAY(),\"\")","v":""},null,null,null,null,null,"",null,null,null,null,null,"",null,null,null,null,null,""]
[null,"Stocker",null,null,null,"",null,null,null,null,null,"",null,null,null,null,null,"",null,null,null,null,null,"",null,null,null,null,null,""]
[null,"Préparer les commandes destinées aux clients",null,null,null,"",null,null,null,null,null,"",null,null,null,null,null,"",null,null,null,null,null,"",null,null,null,null,null,""]
[null,null,null,null,null,null,null,null,null,null,null,"",null,null,null,null,null,"",null,null,null,null,null,"",null,null,null,null,null,""]
[null,null,null,null,null,"",null,null,null,null,null,"",null,null,null,null,null,"",null,null,null,null,null,"",null,null,null,null,null,""]
["BLOC 2","Approvisionner, mettre en rayon et ranger selon la nature des produits",null,null,null,"",null,null,null,null,null,"",null,null,null,null,null,"",null,null,null,null,null,"",null,null,null,null,null,""]
[null,"Mettre en valeur les produits et l’espace commercial",null,null,null,"",null,null,null,null,null,"",null,null,null,null,null,"",null,null,null,null,null,"",null,null,null,null,null,""]
[null,"Participer aux opérations de conditionnement des produits",null,null,null,"",null,null,null,null,null,"",null,null,null,null,null,"",null,null,null,null,null,"",null,null,null,null,null,""]
[null,"Installer et mettre à jour la signalétique",null,null,null,"",null,null,null,null,null,"",null,null,null,null,null,"",null,null,null,null,null,"",null,null,null,null,null,""]
[null,"Lutter contre la démarque et participer aux opérations d’inventaire",null,null,null,"",null,null,null,null,null,"",null,null,null,null,null,"",null,null,null,null,null,"",null,null,null,null,null,""]
[null,null,null,null,null,"",null,null,null,null,null,"",null,null,null,null,null,"",null,null,null,null,null,"",null,null,null,null,null,""]
[null,null,null,null,null,"",null,null,null,null,null,"",null,null,null,null,null,"",null,null,null,null,null,"",null,null,null,null,null,""]
["BLOC 3","Préparer son environnement de travail",null,null,null,"",null,null,null,null,null,"",null,null,null,null,null,"",null,null,null,null,null,"",null,null,null,null,null,""]
[null,"Prendre contact avec le client",null,null,null,"",null,null,null,null,null,"",null,null,null,null,null,"",null,null,null,null,null,"",null,null,null,null,null,""]
[null,"Accompagner le parcours client dans un contexte omnicanal",null,null,null,"",null,null,null,null,null,"",null,null,null,null,null,"",null,null,null,null,null,"",null,null,null,null,null,""]
[null,"Finaliser la prise en charge du client",null,null,null,"",null,null,null,null,null,"",null,null,null,null,null,"",null,null,null,null,null,"",null,null,null,null,null,""]
[null,"Recevoir les réclamations courantes",null,null,null,"",null,null,null,null,null,"",null,null,null,null,null,"",null,null,null,null,null,"",null,null,null,null,null,""]
[]
["1°)",1,"Novice : Saisir 1 dans la cellule \"Niveau\"","2°)","La date s'incrémente seule lors de la saisie du chiffre du niveau.",null,null,null,null,"5°)","Noter le niveau de difficulté de l'activité."]
[null,2,"Débrouillé : Saisir 2 dans la cellule \"Niveau\""]
[null,3,"Averti : Saisir 3 dans la cellule \"Niveau\"","3°)","Sélectionner les initiales de l'enseignant."]
[null,4,"Expert : Saisir 4 dans la cellule \"Niveau\""]
[null,null,null,"4°)","Puis noter l'activité (PFMP ; Brassens Shop ; Darty...)"]

{"sheet":"Eleve23","index":24,"n_rows":27,"n_cols":32,"rows_kept":27,"cut":false,"hidden":false,"merged":[[1,0,1,27],[3,0,6,0],[3,1,3,2],[5,1,5,2],[6,1,6,2],[10,1,10,2],[11,1,11,2],[12,1,12,2],[13,1,13,2],[16,0,20,0],[16,1,16,2],[17,1,17,2],[18,1,18,2],[19,1,19,2],[20,1,20,2],[9,0,13,0],[9,1,9,2]]}
[]
["Grille de suivi individuelle de formation"]
[null,null,null,"Niveau de l'élève","Prof","Date","Activité","Niveau de difficulté",null,"Niveau de l'élève","Prof","Date","Activité","Niveau de difficulté",null,"Niveau de l'élève","Prof","Date","Activité","Niveau de difficulté",null,"Niveau de l'élève","Prof","Date","Activité","Niveau de difficulté",null,"Niveau de l'élève","Prof","Date","Activité","Niveau de difficulté"]
["BLOC 1","Participer à la passation des commandes fournisseurs",null,null,null,{"$f":"IF(D4<>\"\",TODAY(),\"\")","v":""},null,null,null,null,null,null,null,null,null,null,null,{"$f":"IF(P4<>\"\",TODAY(),\"\")","v":""},null,null,null,null,null,{"$f":"IF(V4<>\"\",TODAY(),\"\")","v":""},null,null,null,null,null,{"$f":"IF(AB4<>\"\",TODAY(),\"\")","v":""}]
[null,"Réceptionner",null,null,null,"",null,null,null,null,null,{"$f":"IF(J5<>\"\",TODAY(),\"\")","v":""},null,null,null,null,null,"",null,null,null,null,null,"",null,null,null,null,null,""]
[null,"Stocker",null,null,null,"",null,null,null,null,null,"",null,null,null,null,null,"",null,null,null,null,null,"",null,null,null,null,null,""]
[null,"Préparer les commandes destinées aux clients",null,null,null,"",null,null,null,null,null,"",null,null,null,null,null,"",null,null,null,null,null,"",null,null,null,null,null,""]
[null,null,null,null,null,null,null,null,null,null,null,"",null,null,null,null,null,"",null,null,null,null,null,"",null,null,null,null,null,""]
[null,null,null,null,null,"",null,null,null,null,null,"",null,null,null,null,null,"",null,null,null,null,null,"",null,null,null,null,null,""]
["BLOC 2","Approvisionner, mettre en rayon et ranger selon la nature des produits",null,null,null,"",null,null,null,null,null,"",null,null,null,null,null,"",null,null,null,null,null,"",null,null,null,null,null,""]
[null,"Mettre en valeur les produits et l’espace commercial",null,null,null,"",null,null,null,null,null,"",null,null,null,null,null,"",null,null,null,null,null,"",null,null,null,null,null,""]
[null,"Participer aux opérations de conditionnement des produits",null,null,null,"",null,null,null,null,null,"",null,null,null,null,null,"",null,null,null,null,null,"",null,null,null,null,null,""]
[null,"Installer et mettre à jour la signalétique",null,null,null,"",null,null,null,null,null,"",null,null,null,null,null,"",null,null,null,null,null,"",null,null,null,null,null,""]
[null,"Lutter contre la démarque et participer aux opérations d’inventaire",null,null,null,"",null,null,null,null,null,"",null,null,null,null,null,"",null,null,null,null,null,"",null,null,null,null,null,""]
[null,null,null,null,null,"",null,null,null,null,null,"",null,null,null,null,null,"",null,null,null,null,null,"",null,null,null,null,null,""]
[null,null,null,null,null,"",null,null,null,null,null,"",null,null,null,null,null,"",null,null,null,null,null,"",null,null,null,null,null,""]
["BLOC 3","Préparer son environnement de travail",null,null,null,"",null,null,null,null,null,"",null,null,null,null,null,"",null,null,null,null,null,"",null,null,null,null,null,""]
[null,"Prendre contact avec le client",null,null,null,"",null,null,null,null,null,"",null,null,null,null,null,"",null,null,null,null,null,"",null,null,null,null,null,""]
[null,"Accompagner le parcours client dans un contexte omnicanal",null,null,null,"",null,null,null,null,null,"",null,null,null,null,null,"",null,null,null,null,null,"",null,null,null,null,null,""]
[null,"Finaliser la prise en charge du client",null,null,null,"",null,null,null,null,null,"",null,null,null,null,null,"",null,null,null,null,null,"",null,null,null,null,null,""]
[null,"Recevoir les réclamations courantes",null,null,null,"",null,null,null,null,null,"",null,null,null,null,null,"",null,null,null,null,null,"",null,null,null,null,null,""]
[]
["1°)",1,"Novice : Saisir 1 dans la cellule \"Niveau\"","2°)","La date s'incrémente seule lors de la saisie du chiffre du niveau.",null,null,null,null,"5°)","Noter le niveau de difficulté de l'activité."]
[null,2,"Débrouillé : Saisir 2 dans la cellule \"Niveau\""]
[null,3,"Averti : Saisir 3 dans la cellule \"Niveau\"","3°)","Sélectionner les initiales de l'enseignant."]
[null,4,"Expert : Saisir 4 dans la cellule \"Niveau\""]
[null,null,null,"4°)","Puis noter l'activité (PFMP ; Brassens Shop ; Darty...)"]

{"sheet":"Eleve24","index":25,"n_rows":27,"n_cols":32,"rows_kept":27,"cut":false,"hidden":false,"merged":[[1,0,1,27],[3,0,6,0],[3,1,3,2],[5,1,5,2],[6,1,6,2],[10,1,10,2],[11,1,11,2],[12,1,12,2],[13,1,13,2],[16,0,20,0],[16,1,16,2],[17,1,17,2],[18,1,18,2],[19,1,19,2],[20,1,20,2],[9,0,13,0],[9,1,9,2]]}
[]
["Grille de suivi individuelle de formation"]
[null,null,null,"Niveau de l'élève","Prof","Date","Activité","Niveau de difficulté",null,"Niveau de l'élève","Prof","Date","Activité","Niveau de difficulté",null,"Niveau de l'élève","Prof","Date","Activité","Niveau de difficulté",null,"Niveau de l'élève","Prof","Date","Activité","Niveau de difficulté",null,"Niveau de l'élève","Prof","Date","Activité","Niveau de difficulté"]
["BLOC 1","Participer à la passation des commandes fournisseurs",null,null,null,{"$f":"IF(D4<>\"\",TODAY(),\"\")","v":""},null,null,null,null,null,null,null,null,null,null,null,{"$f":"IF(P4<>\"\",TODAY(),\"\")","v":""},null,null,null,null,null,{"$f":"IF(V4<>\"\",TODAY(),\"\")","v":""},null,null,null,null,null,{"$f":"IF(AB4<>\"\",TODAY(),\"\")","v":""}]
[null,"Réceptionner",null,null,null,"",null,null,null,null,null,{"$f":"IF(J5<>\"\",TODAY(),\"\")","v":""},null,null,null,null,null,"",null,null,null,null,null,"",null,null,null,null,null,""]
[null,"Stocker",null,null,null,"",null,null,null,null,null,"",null,null,null,null,null,"",null,null,null,null,null,"",null,null,null,null,null,""]
[null,"Préparer les commandes destinées aux clients",null,null,null,"",null,null,null,null,null,"",null,null,null,null,null,"",null,null,null,null,null,"",null,null,null,null,null,""]
[null,null,null,null,null,null,null,null,null,null,null,"",null,null,null,null,null,"",null,null,null,null,null,"",null,null,null,null,null,""]
[null,null,null,null,null,"",null,null,null,null,null,"",null,null,null,null,null,"",null,null,null,null,null,"",null,null,null,null,null,""]
["BLOC 2","Approvisionner, mettre en rayon et ranger selon la nature des produits",null,null,null,"",null,null,null,null,null,"",null,null,null,null,null,"",null,null,null,null,null,"",null,null,null,null,null,""]
[null,"Mettre en valeur les produits et l’espace commercial",null,null,null,"",null,null,null,null,null,"",null,null,null,null,null,"",null,null,null,null,null,"",null,null,null,null,null,""]
[null,"Participer aux opérations de conditionnement des produits",null,null,null,"",null,null,null,null,null,"",null,null,null,null,null,"",null,null,null,null,null,"",null,null,null,null,null,""]
[null,"Installer et mettre à jour la signalétique",null,null,null,"",null,null,null,null,null,"",null,null,null,null,null,"",null,null,null,null,null,"",null,null,null,null,null,""]
[null,"Lutter contre la démarque et participer aux opérations d’inventaire",null,null,null,"",null,null,null,null,null,"",null,null,null,null,null,"",null,null,null,null,null,"",null,null,null,null,null,""]
[null,null,null,null,null,"",null,null,null,null,null,"",null,null,null,null,null,"",null,null,null,null,null,"",null,null,null,null,null,""]
[null,null,null,null,null,"",null,null,null,null,null,"",null,null,null,null,null,"",null,null,null,null,null,"",null,null,null,null,null,""]
["BLOC 3","Préparer son environnement de travail",null,null,null,"",null,null,null,null,null,"",null,null,null,null,null,"",null,null,null,null,null,"",null,null,null,null,null,""]
[null,"Prendre contact avec le client",null,null,null,"",null,null,null,null,null,"",null,null,null,null,null,"",null,null,null,null,null,"",null,null,null,null,null,""]
[null,"Accompagner le parcours client dans un contexte omnicanal",null,null,null,"",null,null,null,null,null,"",null,null,null,null,null,"",null,null,null,null,null,"",null,null,null,null,null,""]
[null,"Finaliser la prise en charge du client",null,null,null,"",null,null,null,null,null,"",null,null,null,null,null,"",null,null,null,null,null,"",null,null,null,null,null,""]
[null,"Recevoir les réclamations courantes",null,null,null,"",null,null,null,null,null,"",null,null,null,null,null,"",null,null,null,null,null,"",null,null,null,null,null,""]
[]
["1°)",1,"Novice : Saisir 1 dans la cellule \"Niveau\"","2°)","La date s'incrémente seule lors de la saisie du chiffre du niveau.",null,null,null,null,"5°)","Noter le niveau de difficulté de l'activité."]
[null,2,"Débrouillé : Saisir 2 dans la cellule \"Niveau\""]
[null,3,"Averti : Saisir 3 dans la cellule \"Niveau\"","3°)","Sélectionner les initiales de l'enseignant."]
[null,4,"Expert : Saisir 4 dans la cellule \"Niveau\""]
[null,null,null,"4°)","Puis noter l'activité (PFMP ; Brassens Shop ; Darty...)"]

{"sheet":"Eleve25","index":26,"n_rows":27,"n_cols":32,"rows_kept":27,"cut":false,"hidden":false,"merged":[[1,0,1,27],[3,0,6,0],[3,1,3,2],[5,1,5,2],[6,1,6,2],[10,1,10,2],[11,1,11,2],[12,1,12,2],[13,1,13,2],[16,0,20,0],[16,1,16,2],[17,1,17,2],[18,1,18,2],[19,1,19,2],[20,1,20,2],[9,0,13,0],[9,1,9,2]]}
[]
["Grille de suivi individuelle de formation"]
[null,null,null,"Niveau de l'élève","Prof","Date","Activité","Niveau de difficulté",null,"Niveau de l'élève","Prof","Date","Activité","Niveau de difficulté",null,"Niveau de l'élève","Prof","Date","Activité","Niveau de difficulté",null,"Niveau de l'élève","Prof","Date","Activité","Niveau de difficulté",null,"Niveau de l'élève","Prof","Date","Activité","Niveau de difficulté"]
["BLOC 1","Participer à la passation des commandes fournisseurs",null,null,null,{"$f":"IF(D4<>\"\",TODAY(),\"\")","v":""},null,null,null,null,null,null,null,null,null,null,null,{"$f":"IF(P4<>\"\",TODAY(),\"\")","v":""},null,null,null,null,null,{"$f":"IF(V4<>\"\",TODAY(),\"\")","v":""},null,null,null,null,null,{"$f":"IF(AB4<>\"\",TODAY(),\"\")","v":""}]
[null,"Réceptionner",null,null,null,"",null,null,null,null,null,{"$f":"IF(J5<>\"\",TODAY(),\"\")","v":""},null,null,null,null,null,"",null,null,null,null,null,"",null,null,null,null,null,""]
[null,"Stocker",null,null,null,"",null,null,null,null,null,"",null,null,null,null,null,"",null,null,null,null,null,"",null,null,null,null,null,""]
[null,"Préparer les commandes destinées aux clients",null,null,null,"",null,null,null,null,null,"",null,null,null,null,null,"",null,null,null,null,null,"",null,null,null,null,null,""]
[null,null,null,null,null,null,null,null,null,null,null,"",null,null,null,null,null,"",null,null,null,null,null,"",null,null,null,null,null,""]
[null,null,null,null,null,"",null,null,null,null,null,"",null,null,null,null,null,"",null,null,null,null,null,"",null,null,null,null,null,""]
["BLOC 2","Approvisionner, mettre en rayon et ranger selon la nature des produits",null,null,null,"",null,null,null,null,null,"",null,null,null,null,null,"",null,null,null,null,null,"",null,null,null,null,null,""]
[null,"Mettre en valeur les produits et l’espace commercial",null,null,null,"",null,null,null,null,null,"",null,null,null,null,null,"",null,null,null,null,null,"",null,null,null,null,null,""]
[null,"Participer aux opérations de conditionnement des produits",null,null,null,"",null,null,null,null,null,"",null,null,null,null,null,"",null,null,null,null,null,"",null,null,null,null,null,""]
[null,"Installer et mettre à jour la signalétique",null,null,null,"",null,null,null,null,null,"",null,null,null,null,null,"",null,null,null,null,null,"",null,null,null,null,null,""]
[null,"Lutter contre la démarque et participer aux opérations d’inventaire",null,null,null,"",null,null,null,null,null,"",null,null,null,null,null,"",null,null,null,null,null,"",null,null,null,null,null,""]
[null,null,null,null,null,"",null,null,null,null,null,"",null,null,null,null,null,"",null,null,null,null,null,"",null,null,null,null,null,""]
[null,null,null,null,null,"",null,null,null,null,null,"",null,null,null,null,null,"",null,null,null,null,null,"",null,null,null,null,null,""]
["BLOC 3","Préparer son environnement de travail",null,null,null,"",null,null,null,null,null,"",null,null,null,null,null,"",null,null,null,null,null,"",null,null,null,null,null,""]
[null,"Prendre contact avec le client",null,null,null,"",null,null,null,null,null,"",null,null,null,null,null,"",null,null,null,null,null,"",null,null,null,null,null,""]
[null,"Accompagner le parcours client dans un contexte omnicanal",null,null,null,"",null,null,null,null,null,"",null,null,null,null,null,"",null,null,null,null,null,"",null,null,null,null,null,""]
[null,"Finaliser la prise en charge du client",null,null,null,"",null,null,null,null,null,"",null,null,null,null,null,"",null,null,null,null,null,"",null,null,null,null,null,""]
[null,"Recevoir les réclamations courantes",null,null,null,"",null,null,null,null,null,"",null,null,null,null,null,"",null,null,null,null,null,"",null,null,null,null,null,""]
[]
["1°)",1,"Novice : Saisir 1 dans la cellule \"Niveau\"","2°)","La date s'incrémente seule lors de la saisie du chiffre du niveau.",null,null,null,null,"5°)","Noter le niveau de difficulté de l'activité."]
[null,2,"Débrouillé : Saisir 2 dans la cellule \"Niveau\""]
[null,3,"Averti : Saisir 3 dans la cellule \"Niveau\"","3°)","Sélectionner les initiales de l'enseignant."]
[null,4,"Expert : Saisir 4 dans la cellule \"Niveau\""]
[null,null,null,"4°)","Puis noter l'activité (PFMP ; Brassens Shop ; Darty...)"]

{"sheet":"Eleve26","index":27,"n_rows":27,"n_cols":32,"rows_kept":27,"cut":false,"hidden":false,"merged":[[1,0,1,27],[3,0,6,0],[3,1,3,2],[5,1,5,2],[6,1,6,2],[10,1,10,2],[11,1,11,2],[12,1,12,2],[13,1,13,2],[16,0,20,0],[16,1,16,2],[17,1,17,2],[18,1,18,2],[19,1,19,2],[20,1,20,2],[9,0,13,0],[9,1,9,2]]}
[]
["Grille de suivi individuelle de formation"]
[null,null,null,"Niveau de l'élève","Prof","Date","Activité","Niveau de difficulté",null,"Niveau de l'élève","Prof","Date","Activité","Niveau de difficulté",null,"Niveau de l'élève","Prof","Date","Activité","Niveau de difficulté",null,"Niveau de l'élève","Prof","Date","Activité","Niveau de difficulté",null,"Niveau de l'élève","Prof","Date","Activité","Niveau de difficulté"]
["BLOC 1","Participer à la passation des commandes fournisseurs",null,null,null,{"$f":"IF(D4<>\"\",TODAY(),\"\")","v":""},null,null,null,null,null,null,null,null,null,null,null,{"$f":"IF(P4<>\"\",TODAY(),\"\")","v":""},null,null,null,null,null,{"$f":"IF(V4<>\"\",TODAY(),\"\")","v":""},null,null,null,null,null,{"$f":"IF(AB4<>\"\",TODAY(),\"\")","v":""}]
[null,"Réceptionner",null,null,null,"",null,null,null,null,null,{"$f":"IF(J5<>\"\",TODAY(),\"\")","v":""},null,null,null,null,null,"",null,null,null,null,null,"",null,null,null,null,null,""]
[null,"Stocker",null,null,null,"",null,null,null,null,null,"",null,null,null,null,null,"",null,null,null,null,null,"",null,null,null,null,null,""]
[null,"Préparer les commandes destinées aux clients",null,null,null,"",null,null,null,null,null,"",null,null,null,null,null,"",null,null,null,null,null,"",null,null,null,null,null,""]
[null,null,null,null,null,null,null,null,null,null,null,"",null,null,null,null,null,"",null,null,null,null,null,"",null,null,null,null,null,""]
[null,null,null,null,null,"",null,null,null,null,null,"",null,null,null,null,null,"",null,null,null,null,null,"",null,null,null,null,null,""]
["BLOC 2","Approvisionner, mettre en rayon et ranger selon la nature des produits",null,null,null,"",null,null,null,null,null,"",null,null,null,null,null,"",null,null,null,null,null,"",null,null,null,null,null,""]
[null,"Mettre en valeur les produits et l’espace commercial",null,null,null,"",null,null,null,null,null,"",null,null,null,null,null,"",null,null,null,null,null,"",null,null,null,null,null,""]
[null,"Participer aux opérations de conditionnement des produits",null,null,null,"",null,null,null,null,null,"",null,null,null,null,null,"",null,null,null,null,null,"",null,null,null,null,null,""]
[null,"Installer et mettre à jour la signalétique",null,null,null,"",null,null,null,null,null,"",null,null,null,null,null,"",null,null,null,null,null,"",null,null,null,null,null,""]
[null,"Lutter contre la démarque et participer aux opérations d’inventaire",null,null,null,"",null,null,null,null,null,"",null,null,null,null,null,"",null,null,null,null,null,"",null,null,null,null,null,""]
[null,null,null,null,null,"",null,null,null,null,null,"",null,null,null,null,null,"",null,null,null,null,null,"",null,null,null,null,null,""]
[null,null,null,null,null,"",null,null,null,null,null,"",null,null,null,null,null,"",null,null,null,null,null,"",null,null,null,null,null,""]
["BLOC 3","Préparer son environnement de travail",null,null,null,"",null,null,null,null,null,"",null,null,null,null,null,"",null,null,null,null,null,"",null,null,null,null,null,""]
[null,"Prendre contact avec le client",null,null,null,"",null,null,null,null,null,"",null,null,null,null,null,"",null,null,null,null,null,"",null,null,null,null,null,""]
[null,"Accompagner le parcours client dans un contexte omnicanal",null,null,null,"",null,null,null,null,null,"",null,null,null,null,null,"",null,null,null,null,null,"",null,null,null,null,null,""]
[null,"Finaliser la prise en charge du client",null,null,null,"",null,null,null,null,null,"",null,null,null,null,null,"",null,null,null,null,null,"",null,null,null,null,null,""]
[null,"Recevoir les réclamations courantes",null,null,null,"",null,null,null,null,null,"",null,null,null,null,null,"",null,null,null,null,null,"",null,null,null,null,null,""]
[]
["1°)",1,"Novice : Saisir 1 dans la cellule \"Niveau\"","2°)","La date s'incrémente seule lors de la saisie du chiffre du niveau.",null,null,null,null,"5°)","Noter le niveau de difficulté de l'activité."]
[null,2,"Débrouillé : Saisir 2 dans la cellule \"Niveau\""]
[null,3,"Averti : Saisir 3 dans la cellule \"Niveau\"","3°)","Sélectionner les initiales de l'enseignant."]
[null,4,"Expert : Saisir 4 dans la cellule \"Niveau\""]
[null,null,null,"4°)","Puis noter l'activité (PFMP ; Brassens Shop ; Darty...)"]

{"sheet":"Eleve27","index":28,"n_rows":27,"n_cols":32,"rows_kept":27,"cut":false,"hidden":false,"merged":[[1,0,1,27],[3,0,6,0],[3,1,3,2],[5,1,5,2],[6,1,6,2],[10,1,10,2],[11,1,11,2],[12,1,12,2],[13,1,13,2],[16,0,20,0],[16,1,16,2],[17,1,17,2],[18,1,18,2],[19,1,19,2],[20,1,20,2],[9,0,13,0],[9,1,9,2]]}
[]
["Grille de suivi individuelle de formation"]
[null,null,null,"Niveau de l'élève","Prof","Date","Activité","Niveau de difficulté",null,"Niveau de l'élève","Prof","Date","Activité","Niveau de difficulté",null,"Niveau de l'élève","Prof","Date","Activité","Niveau de difficulté",null,"Niveau de l'élève","Prof","Date","Activité","Niveau de difficulté",null,"Niveau de l'élève","Prof","Date","Activité","Niveau de difficulté"]
["BLOC 1","Participer à la passation des commandes fournisseurs",null,null,null,{"$f":"IF(D4<>\"\",TODAY(),\"\")","v":""},null,null,null,null,null,null,null,null,null,null,null,{"$f":"IF(P4<>\"\",TODAY(),\"\")","v":""},null,null,null,null,null,{"$f":"IF(V4<>\"\",TODAY(),\"\")","v":""},null,null,null,null,null,{"$f":"IF(AB4<>\"\",TODAY(),\"\")","v":""}]
[null,"Réceptionner",null,null,null,"",null,null,null,null,null,{"$f":"IF(J5<>\"\",TODAY(),\"\")","v":""},null,null,null,null,null,"",null,null,null,null,null,"",null,null,null,null,null,""]
[null,"Stocker",null,null,null,"",null,null,null,null,null,"",null,null,null,null,null,"",null,null,null,null,null,"",null,null,null,null,null,""]
[null,"Préparer les commandes destinées aux clients",null,null,null,"",null,null,null,null,null,"",null,null,null,null,null,"",null,null,null,null,null,"",null,null,null,null,null,""]
[null,null,null,null,null,null,null,null,null,null,null,"",null,null,null,null,null,"",null,null,null,null,null,"",null,null,null,null,null,""]
[null,null,null,null,null,"",null,null,null,null,null,"",null,null,null,null,null,"",null,null,null,null,null,"",null,null,null,null,null,""]
["BLOC 2","Approvisionner, mettre en rayon et ranger selon la nature des produits",null,null,null,"",null,null,null,null,null,"",null,null,null,null,null,"",null,null,null,null,null,"",null,null,null,null,null,""]
[null,"Mettre en valeur les produits et l’espace commercial",null,null,null,"",null,null,null,null,null,"",null,null,null,null,null,"",null,null,null,null,null,"",null,null,null,null,null,""]
[null,"Participer aux opérations de conditionnement des produits",null,null,null,"",null,null,null,null,null,"",null,null,null,null,null,"",null,null,null,null,null,"",null,null,null,null,null,""]
[null,"Installer et mettre à jour la signalétique",null,null,null,"",null,null,null,null,null,"",null,null,null,null,null,"",null,null,null,null,null,"",null,null,null,null,null,""]
[null,"Lutter contre la démarque et participer aux opérations d’inventaire",null,null,null,"",null,null,null,null,null,"",null,null,null,null,null,"",null,null,null,null,null,"",null,null,null,null,null,""]
[null,null,null,null,null,"",null,null,null,null,null,"",null,null,null,null,null,"",null,null,null,null,null,"",null,null,null,null,null,""]
[null,null,null,null,null,"",null,null,null,null,null,"",null,null,null,null,null,"",null,null,null,null,null,"",null,null,null,null,null,""]
["BLOC 3","Préparer son environnement de travail",null,null,null,"",null,null,null,null,null,"",null,null,null,null,null,"",null,null,null,null,null,"",null,null,null,null,null,""]
[null,"Prendre contact avec le client",null,null,null,"",null,null,null,null,null,"",null,null,null,null,null,"",null,null,null,null,null,"",null,null,null,null,null,""]
[null,"Accompagner le parcours client dans un contexte omnicanal",null,null,null,"",null,null,null,null,null,"",null,null,null,null,null,"",null,null,null,null,null,"",null,null,null,null,null,""]
[null,"Finaliser la prise en charge du client",null,null,null,"",null,null,null,null,null,"",null,null,null,null,null,"",null,null,null,null,null,"",null,null,null,null,null,""]
[null,"Recevoir les réclamations courantes",null,null,null,"",null,null,null,null,null,"",null,null,null,null,null,"",null,null,null,null,null,"",null,null,null,null,null,""]
[]
["1°)",1,"Novice : Saisir 1 dans la cellule \"Niveau\"","2°)","La date s'incrémente seule lors de la saisie du chiffre du niveau.",null,null,null,null,"5°)","Noter le niveau de difficulté de l'activité."]
[null,2,"Débrouillé : Saisir 2 dans la cellule \"Niveau\""]
[null,3,"Averti : Saisir 3 dans la cellule \"Niveau\"","3°)","Sélectionner les initiales de l'enseignant."]
[null,4,"Expert : Saisir 4 dans la cellule \"Niveau\""]
[null,null,null,"4°)","Puis noter l'activité (PFMP ; Brassens Shop ; Darty...)"]

{"sheet":"Eleve28","index":29,"n_rows":27,"n_cols":32,"rows_kept":27,"cut":false,"hidden":false,"merged":[[1,0,1,27],[3,0,6,0],[3,1,3,2],[5,1,5,2],[6,1,6,2],[10,1,10,2],[11,1,11,2],[12,1,12,2],[13,1,13,2],[16,0,20,0],[16,1,16,2],[17,1,17,2],[18,1,18,2],[19,1,19,2],[20,1,20,2],[9,0,13,0],[9,1,9,2]]}
[]
["Grille de suivi individuelle de formation"]
[null,null,null,"Niveau de l'élève","Prof","Date","Activité","Niveau de difficulté",null,"Niveau de l'élève","Prof","Date","Activité","Niveau de difficulté",null,"Niveau de l'élève","Prof","Date","Activité","Niveau de difficulté",null,"Niveau de l'élève","Prof","Date","Activité","Niveau de difficulté",null,"Niveau de l'élève","Prof","Date","Activité","Niveau de difficulté"]
["BLOC 1","Participer à la passation des commandes fournisseurs",null,null,null,{"$f":"IF(D4<>\"\",TODAY(),\"\")","v":""},null,null,null,null,null,null,null,null,null,null,null,{"$f":"IF(P4<>\"\",TODAY(),\"\")","v":""},null,null,null,null,null,{"$f":"IF(V4<>\"\",TODAY(),\"\")","v":""},null,null,null,null,null,{"$f":"IF(AB4<>\"\",TODAY(),\"\")","v":""}]
[null,"Réceptionner",null,null,null,"",null,null,null,null,null,{"$f":"IF(J5<>\"\",TODAY(),\"\")","v":""},null,null,null,null,null,"",null,null,null,null,null,"",null,null,null,null,null,""]
[null,"Stocker",null,null,null,"",null,null,null,null,null,"",null,null,null,null,null,"",null,null,null,null,null,"",null,null,null,null,null,""]
[null,"Préparer les commandes destinées aux clients",null,null,null,"",null,null,null,null,null,"",null,null,null,null,null,"",null,null,null,null,null,"",null,null,null,null,null,""]
[null,null,null,null,null,null,null,null,null,null,null,"",null,null,null,null,null,"",null,null,null,null,null,"",null,null,null,null,null,""]
[null,null,null,null,null,"",null,null,null,null,null,"",null,null,null,null,null,"",null,null,null,null,null,"",null,null,null,null,null,""]
["BLOC 2","Approvisionner, mettre en rayon et ranger selon la nature des produits",null,null,null,"",null,null,null,null,null,"",null,null,null,null,null,"",null,null,null,null,null,"",null,null,null,null,null,""]
[null,"Mettre en valeur les produits et l’espace commercial",null,null,null,"",null,null,null,null,null,"",null,null,null,null,null,"",null,null,null,null,null,"",null,null,null,null,null,""]
[null,"Participer aux opérations de conditionnement des produits",null,null,null,"",null,null,null,null,null,"",null,null,null,null,null,"",null,null,null,null,null,"",null,null,null,null,null,""]
[null,"Installer et mettre à jour la signalétique",null,null,null,"",null,null,null,null,null,"",null,null,null,null,null,"",null,null,null,null,null,"",null,null,null,null,null,""]
[null,"Lutter contre la démarque et participer aux opérations d’inventaire",null,null,null,"",null,null,null,null,null,"",null,null,null,null,null,"",null,null,null,null,null,"",null,null,null,null,null,""]
[null,null,null,null,null,"",null,null,null,null,null,"",null,null,null,null,null,"",null,null,null,null,null,"",null,null,null,null,null,""]
[null,null,null,null,null,"",null,null,null,null,null,"",null,null,null,null,null,"",null,null,null,null,null,"",null,null,null,null,null,""]
["BLOC 3","Préparer son environnement de travail",null,null,null,"",null,null,null,null,null,"",null,null,null,null,null,"",null,null,null,null,null,"",null,null,null,null,null,""]
[null,"Prendre contact avec le client",null,null,null,"",null,null,null,null,null,"",null,null,null,null,null,"",null,null,null,null,null,"",null,null,null,null,null,""]
[null,"Accompagner le parcours client dans un contexte omnicanal",null,null,null,"",null,null,null,null,null,"",null,null,null,null,null,"",null,null,null,null,null,"",null,null,null,null,null,""]
[null,"Finaliser la prise en charge du client",null,null,null,"",null,null,null,null,null,"",null,null,null,null,null,"",null,null,null,null,null,"",null,null,null,null,null,""]
[null,"Recevoir les réclamations courantes",null,null,null,"",null,null,null,null,null,"",null,null,null,null,null,"",null,null,null,null,null,"",null,null,null,null,null,""]
[]
["1°)",1,"Novice : Saisir 1 dans la cellule \"Niveau\"","2°)","La date s'incrémente seule lors de la saisie du chiffre du niveau.",null,null,null,null,"5°)","Noter le niveau de difficulté de l'activité."]
[null,2,"Débrouillé : Saisir 2 dans la cellule \"Niveau\""]
[null,3,"Averti : Saisir 3 dans la cellule \"Niveau\"","3°)","Sélectionner les initiales de l'enseignant."]
[null,4,"Expert : Saisir 4 dans la cellule \"Niveau\""]
[null,null,null,"4°)","Puis noter l'activité (PFMP ; Brassens Shop ; Darty...)"]

{"sheet":"Eleve29","index":30,"n_rows":27,"n_cols":32,"rows_kept":27,"cut":false,"hidden":false,"merged":[[1,0,1,27],[3,0,6,0],[3,1,3,2],[5,1,5,2],[6,1,6,2],[10,1,10,2],[11,1,11,2],[12,1,12,2],[13,1,13,2],[16,0,20,0],[16,1,16,2],[17,1,17,2],[18,1,18,2],[19,1,19,2],[20,1,20,2],[9,0,13,0],[9,1,9,2]]}
[]
["Grille de suivi individuelle de formation"]
[null,null,null,"Niveau de l'élève","Prof","Date","Activité","Niveau de difficulté",null,"Niveau de l'élève","Prof","Date","Activité","Niveau de difficulté",null,"Niveau de l'élève","Prof","Date","Activité","Niveau de difficulté",null,"Niveau de l'élève","Prof","Date","Activité","Niveau de difficulté",null,"Niveau de l'élève","Prof","Date","Activité","Niveau de difficulté"]
["BLOC 1","Participer à la passation des commandes fournisseurs",null,null,null,{"$f":"IF(D4<>\"\",TODAY(),\"\")","v":""},null,null,null,null,null,null,null,null,null,null,null,{"$f":"IF(P4<>\"\",TODAY(),\"\")","v":""},null,null,null,null,null,{"$f":"IF(V4<>\"\",TODAY(),\"\")","v":""},null,null,null,null,null,{"$f":"IF(AB4<>\"\",TODAY(),\"\")","v":""}]
[null,"Réceptionner",null,null,null,"",null,null,null,null,null,{"$f":"IF(J5<>\"\",TODAY(),\"\")","v":""},null,null,null,null,null,"",null,null,null,null,null,"",null,null,null,null,null,""]
[null,"Stocker",null,null,null,"",null,null,null,null,null,"",null,null,null,null,null,"",null,null,null,null,null,"",null,null,null,null,null,""]
[null,"Préparer les commandes destinées aux clients",null,null,null,"",null,null,null,null,null,"",null,null,null,null,null,"",null,null,null,null,null,"",null,null,null,null,null,""]
[null,null,null,null,null,null,null,null,null,null,null,"",null,null,null,null,null,"",null,null,null,null,null,"",null,null,null,null,null,""]
[null,null,null,null,null,"",null,null,null,null,null,"",null,null,null,null,null,"",null,null,null,null,null,"",null,null,null,null,null,""]
["BLOC 2","Approvisionner, mettre en rayon et ranger selon la nature des produits",null,null,null,"",null,null,null,null,null,"",null,null,null,null,null,"",null,null,null,null,null,"",null,null,null,null,null,""]
[null,"Mettre en valeur les produits et l’espace commercial",null,null,null,"",null,null,null,null,null,"",null,null,null,null,null,"",null,null,null,null,null,"",null,null,null,null,null,""]
[null,"Participer aux opérations de conditionnement des produits",null,null,null,"",null,null,null,null,null,"",null,null,null,null,null,"",null,null,null,null,null,"",null,null,null,null,null,""]
[null,"Installer et mettre à jour la signalétique",null,null,null,"",null,null,null,null,null,"",null,null,null,null,null,"",null,null,null,null,null,"",null,null,null,null,null,""]
[null,"Lutter contre la démarque et participer aux opérations d’inventaire",null,null,null,"",null,null,null,null,null,"",null,null,null,null,null,"",null,null,null,null,null,"",null,null,null,null,null,""]
[null,null,null,null,null,"",null,null,null,null,null,"",null,null,null,null,null,"",null,null,null,null,null,"",null,null,null,null,null,""]
[null,null,null,null,null,"",null,null,null,null,null,"",null,null,null,null,null,"",null,null,null,null,null,"",null,null,null,null,null,""]
["BLOC 3","Préparer son environnement de travail",null,null,null,"",null,null,null,null,null,"",null,null,null,null,null,"",null,null,null,null,null,"",null,null,null,null,null,""]
[null,"Prendre contact avec le client",null,null,null,"",null,null,null,null,null,"",null,null,null,null,null,"",null,null,null,null,null,"",null,null,null,null,null,""]
[null,"Accompagner le parcours client dans un contexte omnicanal",null,null,null,"",null,null,null,null,null,"",null,null,null,null,null,"",null,null,null,null,null,"",null,null,null,null,null,""]
[null,"Finaliser la prise en charge du client",null,null,null,"",null,null,null,null,null,"",null,null,null,null,null,"",null,null,null,null,null,"",null,null,null,null,null,""]
[null,"Recevoir les réclamations courantes",null,null,null,"",null,null,null,null,null,"",null,null,null,null,null,"",null,null,null,null,null,"",null,null,null,null,null,""]
[]
["1°)",1,"Novice : Saisir 1 dans la cellule \"Niveau\"","2°)","La date s'incrémente seule lors de la saisie du chiffre du niveau.",null,null,null,null,"5°)","Noter le niveau de difficulté de l'activité."]
[null,2,"Débrouillé : Saisir 2 dans la cellule \"Niveau\""]
[null,3,"Averti : Saisir 3 dans la cellule \"Niveau\"","3°)","Sélectionner les initiales de l'enseignant."]
[null,4,"Expert : Saisir 4 dans la cellule \"Niveau\""]
[null,null,null,"4°)","Puis noter l'activité (PFMP ; Brassens Shop ; Darty...)"]

{"sheet":"Eleve30","index":31,"n_rows":27,"n_cols":32,"rows_kept":27,"cut":false,"hidden":false,"merged":[[1,0,1,27],[3,0,6,0],[3,1,3,2],[5,1,5,2],[6,1,6,2],[10,1,10,2],[11,1,11,2],[12,1,12,2],[13,1,13,2],[16,0,20,0],[16,1,16,2],[17,1,17,2],[18,1,18,2],[19,1,19,2],[20,1,20,2],[9,0,13,0],[9,1,9,2]]}
[]
["Grille de suivi individuelle de formation"]
[null,null,null,"Niveau de l'élève","Prof","Date","Activité","Niveau de difficulté",null,"Niveau de l'élève","Prof","Date","Activité","Niveau de difficulté",null,"Niveau de l'élève","Prof","Date","Activité","Niveau de difficulté",null,"Niveau de l'élève","Prof","Date","Activité","Niveau de difficulté",null,"Niveau de l'élève","Prof","Date","Activité","Niveau de difficulté"]
["BLOC 1","Participer à la passation des commandes fournisseurs",null,null,null,{"$f":"IF(D4<>\"\",TODAY(),\"\")","v":""},null,null,null,null,null,null,null,null,null,null,null,{"$f":"IF(P4<>\"\",TODAY(),\"\")","v":""},null,null,null,null,null,{"$f":"IF(V4<>\"\",TODAY(),\"\")","v":""},null,null,null,null,null,{"$f":"IF(AB4<>\"\",TODAY(),\"\")","v":""}]
[null,"Réceptionner",null,null,null,"",null,null,null,null,null,{"$f":"IF(J5<>\"\",TODAY(),\"\")","v":""},null,null,null,null,null,"",null,null,null,null,null,"",null,null,null,null,null,""]
[null,"Stocker",null,null,null,"",null,null,null,null,null,"",null,null,null,null,null,"",null,null,null,null,null,"",null,null,null,null,null,""]
[null,"Préparer les commandes destinées aux clients",null,null,null,"",null,null,null,null,null,"",null,null,null,null,null,"",null,null,null,null,null,"",null,null,null,null,null,""]
[null,null,null,null,null,null,null,null,null,null,null,"",null,null,null,null,null,"",null,null,null,null,null,"",null,null,null,null,null,""]
[null,null,null,null,null,"",null,null,null,null,null,"",null,null,null,null,null,"",null,null,null,null,null,"",null,null,null,null,null,""]
["BLOC 2","Approvisionner, mettre en rayon et ranger selon la nature des produits",null,null,null,"",null,null,null,null,null,"",null,null,null,null,null,"",null,null,null,null,null,"",null,null,null,null,null,""]
[null,"Mettre en valeur les produits et l’espace commercial",null,null,null,"",null,null,null,null,null,"",null,null,null,null,null,"",null,null,null,null,null,"",null,null,null,null,null,""]
[null,"Participer aux opérations de conditionnement des produits",null,null,null,"",null,null,null,null,null,"",null,null,null,null,null,"",null,null,null,null,null,"",null,null,null,null,null,""]
[null,"Installer et mettre à jour la signalétique",null,null,null,"",null,null,null,null,null,"",null,null,null,null,null,"",null,null,null,null,null,"",null,null,null,null,null,""]
[null,"Lutter contre la démarque et participer aux opérations d’inventaire",null,null,null,"",null,null,null,null,null,"",null,null,null,null,null,"",null,null,null,null,null,"",null,null,null,null,null,""]
[null,null,null,null,null,"",null,null,null,null,null,"",null,null,null,null,null,"",null,null,null,null,null,"",null,null,null,null,null,""]
[null,null,null,null,null,"",null,null,null,null,null,"",null,null,null,null,null,"",null,null,null,null,null,"",null,null,null,null,null,""]
["BLOC 3","Préparer son environnement de travail",null,null,null,"",null,null,null,null,null,"",null,null,null,null,null,"",null,null,null,null,null,"",null,null,null,null,null,""]
[null,"Prendre contact avec le client",null,null,null,"",null,null,null,null,null,"",null,null,null,null,null,"",null,null,null,null,null,"",null,null,null,null,null,""]
[null,"Accompagner le parcours client dans un contexte omnicanal",null,null,null,"",null,null,null,null,null,"",null,null,null,null,null,"",null,null,null,null,null,"",null,null,null,null,null,""]
[null,"Finaliser la prise en charge du client",null,null,null,"",null,null,null,null,null,"",null,null,null,null,null,"",null,null,null,null,null,"",null,null,null,null,null,""]
[null,"Recevoir les réclamations courantes",null,null,null,"",null,null,null,null,null,"",null,null,null,null,null,"",null,null,null,null,null,"",null,null,null,null,null,""]
[]
["1°)",1,"Novice : Saisir 1 dans la cellule \"Niveau\"","2°)","La date s'incrémente seule lors de la saisie du chiffre du niveau.",null,null,null,null,"5°)","Noter le niveau de difficulté de l'activité."]
[null,2,"Débrouillé : Saisir 2 dans la cellule \"Niveau\""]
[null,3,"Averti : Saisir 3 dans la cellule \"Niveau\"","3°)","Sélectionner les initiales de l'enseignant."]
[null,4,"Expert : Saisir 4 dans la cellule \"Niveau\""]
[null,null,null,"4°)","Puis noter l'activité (PFMP ; Brassens Shop ; Darty...)"]